Workbook

Sheet January

Sheet February

Sheet March

Sheet April

Sheet May

Sheet June

Sheet July

Sheet August

Sheet September

Sheet October

Sheet November

Sheet December

Sheet Daily
A1: DK1 | F1: DK2
A2: Residual load | B2: Number | C2: Middle | D2: Number | E2: Frequency | F2: Residual load | G2: Number | H2: Middle | I2: Number | J2: Frequency
A3: 129.4905516 | B3: 1 | C3: -715 | D3: 6 | E3: =D3/365 -> 0.01643835616 | F3: 734.707161 | G3: 1 | H3: 400 | I3: 1 | J3: =I3/365 -> 0.002739726027
A4: 1309.368187 | B4: 1 | C4: =C3+200 -> -515 | D4: 3 | E4: =D4/365 -> 0.008219178082 | F4: 1350.571133 | G4: 1 | H4: =H3+100 -> 500 | I4: 5 | J4: =I4/365 -> 0.01369863014
A5: 1189.691074 | B5: 1 | C5: =C4+200 -> -315 | D5: 16 | E5: 0.04383561644 | F5: 1247.804083 | G5: 1 | H5: =H4+100 -> 600 | I5: 10 | J5: 0.02739726027
A6: 2177.144009 | B6: 1 | C6: -115 | D6: 15 | E6: 0.04109589041 | F6: 1432.937578 | G6: 1 | H6: 700 | I6: 15 | J6: 0.04109589041
A7: 2537.208274 | B7: 1 | C7: 85 | D7: 17 | E7: 0.04657534247 | F7: 1508.096681 | G7: 1 | H7: 800 | I7: 24 | J7: 0.06575342466
A8: 1913.252647 | B8: 1 | C8: 285 | D8: 23 | E8: 0.06301369863 | F8: 1454.355009 | G8: 1 | H8: 900 | I8: 41 | J8: 0.1123287671
A9: 1802.629958 | B9: 1 | C9: 485 | D9: 28 | E9: 0.07671232877 | F9: 1567.407928 | G9: 1 | H9: 1000 | I9: 57 | J9: 0.1561643836
A10: 2094.151056 | B10: 1 | C10: 685 | D10: 24 | E10: 0.06575342466 | F10: 1693.972334 | G10: 1 | H10: 1100 | I10: 54 | J10: 0.1479452055
A11: 252.6806268 | B11: 1 | C11: 885 | D11: 27 | E11: 0.07397260274 | F11: 1011.374847 | G11: 1 | H11: 1200 | I11: 50 | J11: 0.1369863014
A12: 1785.952596 | B12: 1 | C12: 1085 | D12: 31 | E12: 0.08493150685 | F12: 1623.593397 | G12: 1 | H12: 1300 | I12: 28 | J12: 0.07671232877
A13: 2382.07911 | B13: 1 | C13: 1285 | D13: 28 | E13: 0.07671232877 | F13: 1570.174222 | G13: 1 | H13: 1400 | I13: 20 | J13: 0.05479452055
A14: 1550.505914 | B14: 1 | C14: 1485 | D14: 34 | E14: 0.09315068493 | F14: 1347.453679 | G14: 1 | H14: 1500 | I14: 25 | J14: 0.06849315068
A15: 685.2105882 | B15: 1 | C15: 1685 | D15: 34 | E15: 0.09315068493 | F15: 1154.786146 | G15: 1 | H15: 1600 | I15: 22 | J15: 0.0602739726
A16: 439.0358864 | B16: 1 | C16: 1885 | D16: 33 | E16: 0.0904109589 | F16: 1081.229768 | G16: 1 | H16: 1700 | I16: 10 | J16: 0.02739726027
A17: -226.6315625 | B17: 1 | C17: 2085 | D17: 22 | E17: 0.0602739726 | F17: 936.9109749 | G17: 1 | H17: 1800 | I17: 2 | J17: 0.005479452055
A18: 1597.220778 | B18: 1 | C18: 2285 | D18: 11 | E18: 0.0301369863 | F18: 1149.56714 | G18: 1 | H18: 1900 | I18: 1 | J18: 0.002739726027
A19: 2184.338009 | B19: 1 | C19: 2485 | D19: 11 | E19: 0.0301369863 | F19: 1352.98841 | G19: 1
A20: 2534.993281 | B20: 1 | C20: 2685 | D20: 2 | E20: 0.005479452055 | F20: 1441.965254 | G20: 1
A21: 2470.752207 | B21: 1 | F21: 1665.127117 | G21: 1
A22: 1872.797918 | B22: 1 | F22: 1523.047039 | G22: 1
A23: 1984.872948 | B23: 1 | F23: 1588.277387 | G23: 1
A24: 1787.770559 | B24: 1 | F24: 1496.797607 | G24: 1
A25: 894.1116509 | B25: 1 | F25: 1407.373873 | G25: 1
A26: -347.0694249 | B26: 1 | F26: 916.0526394 | G26: 1
A27: 575.7766727 | B27: 1 | F27: 1205.846035 | G27: 1
A28: 2072.48295 | B28: 1 | F28: 1644.768453 | G28: 1
A29: 576.6329152 | B29: 1 | F29: 1100.793869 | G29: 1
A30: -404.235387 | B30: 1 | F30: 820.3720535 | G30: 1
A31: -376.5573527 | B31: 1 | F31: 845.1755867 | G31: 1
A32: 501.1042452 | B32: 1 | F32: 985.3635286 | G32: 1
A33: 272.3413044 | B33: 1 | F33: 1089.731132 | G33: 1
A34: 450.0317067 | B34: 1 | F34: 1005.710456 | G34: 1
A35: 875.0368845 | B35: 1 | F35: 1452.919464 | G35: 1
A36: 978.8830238 | B36: 1 | F36: 1556.254303 | G36: 1
A37: 391.1374421 | B37: 1 | F37: 1198.230769 | G37: 1
A38: 2628.130557 | B38: 1 | F38: 1702.638359 | G38: 1
A39: 2689.735058 | B39: 1 | F39: 1862.060461 | G39: 1
A40: 1963.265927 | B40: 1 | F40: 1827.778578 | G40: 1
A41: 1130.748186 | B41: 1 | F41: 1724.931193 | G41: 1
A42: 721.1079878 | B42: 1 | F42: 1520.48862 | G42: 1
A43: 975.8918555 | B43: 1 | F43: 1543.898304 | G43: 1
A44: -713.9889432 | B44: 1 | F44: 880.6587232 | G44: 1
A45: 27.15288667 | B45: 1 | F45: 930.4088474 | G45: 1
A46: 1726.164011 | B46: 1 | F46: 1560.257468 | G46: 1
A47: 757.3016209 | B47: 1 | F47: 1517.844678 | G47: 1
A48: -0.80162225 | B48: 1 | F48: 1046.890609 | G48: 1
A49: 1227.933472 | B49: 1 | F49: 1129.767953 | G49: 1
A50: 2086.563406 | B50: 1 | F50: 1492.82831 | G50: 1
A51: 1166.937722 | B51: 1 | F51: 1388.206748 | G51: 1
A52: 2380.944981 | B52: 1 | F52: 1649.555099 | G52: 1
A53: 2210.777744 | B53: 1 | F53: 1607.690154 | G53: 1
A54: 2484.649661 | B54: 1 | F54: 1715.923867 | G54: 1
A55: 2449.717223 | B55: 1 | F55: 1643.937879 | G55: 1
A56: 2405.423408 | B56: 1 | F56: 1676.020492 | G56: 1
A57: 1477.564725 | B57: 1 | F57: 1205.333438 | G57: 1
A58: 1131.445891 | B58: 1 | F58: 1229.025606 | G58: 1
A59: 1159.365908 | B59: 1 | F59: 1318.930583 | G59: 1
A60: -50.16256029 | B60: 1 | F60: 1240.246614 | G60: 1
A61: 48.14420183 | B61: 1 | F61: 1290.57766 | G61: 1
A62: 194.7125773 | B62: 1 | F62: 1402.359093 | G62: 1
A63: 454.4366821 | B63: 1 | F63: 1512.552674 | G63: 1
A64: 1084.947706 | B64: 1 | F64: 1426.406411 | G64: 1
A65: 352.2362596 | B65: 1 | F65: 1122.107581 | G65: 1
A66: 658.9164156 | B66: 1 | F66: 1405.239918 | G66: 1
A67: 2114.218541 | B67: 1 | F67: 1517.924034 | G67: 1
A68: 2109.475919 | B68: 1 | F68: 1607.594792 | G68: 1
A69: 2529.879725 | B69: 1 | F69: 1629.353059 | G69: 1
A70: 2434.310613 | B70: 1 | F70: 1507.220591 | G70: 1
A71: 800.5042176 | B71: 1 | F71: 1203.321404 | G71: 1
A72: 576.7160215 | B72: 1 | F72: 1340.066469 | G72: 1
A73: 2333.060445 | B73: 1 | F73: 1666.370789 | G73: 1
A74: 2055.088959 | B74: 1 | F74: 1601.709797 | G74: 1
A75: 2367.719697 | B75: 1 | F75: 1599.489705 | G75: 1
A76: 103.500552 | B76: 1 | F76: 974.5250611 | G76: 1
A77: -312.3424473 | B77: 1 | F77: 850.1718492 | G77: 1
A78: -121.8045806 | B78: 1 | F78: 777.524972 | G78: 1
A79: 978.1540746 | B79: 1 | F79: 949.9398536 | G79: 1
A80: 1319.526482 | B80: 1 | F80: 1531.901247 | G80: 1
A81: 1379.015935 | B81: 1 | F81: 1260.15535 | G81: 1
A82: 887.133549 | B82: 1 | F82: 1342.970419 | G82: 1
A83: 2063.904506 | B83: 1 | F83: 1452.471764 | G83: 1
A84: 1737.064713 | B84: 1 | F84: 1653.597044 | G84: 1
A85: 1692.120776 | B85: 1 | F85: 1457.053429 | G85: 1
A86: 2005.531971 | B86: 1 | F86: 1422.17003 | G86: 1
A87: 2101.503157 | B87: 1 | F87: 1532.814525 | G87: 1
A88: 1617.87328 | B88: 1 | F88: 1576.936489 | G88: 1
A89: -375.8275132 | B89: 1 | F89: 824.4310329 | G89: 1
A90: 448.9068355 | B90: 1 | F90: 1025.158692 | G90: 1
A91: 1215.69886 | B91: 1 | F91: 1234.031539 | G91: 1
A92: 691.8755205 | B92: 1 | F92: 873.4507266 | G92: 1
A93: 987.8912911 | B93: 1 | F93: 1051.011244 | G93: 1
A94: 1588.394972 | B94: 1 | F94: 1197.031798 | G94: 1
A95: 786.5819785 | B95: 1 | F95: 1326.267163 | G95: 1
A96: 1454.928742 | B96: 1 | F96: 1118.350714 | G96: 1
A97: 336.2467318 | B97: 1 | F97: 919.194655 | G97: 1
A98: 731.282076 | B98: 1 | F98: 998.0757652 | G98: 1
A99: 468.0474295 | B99: 1 | F99: 834.1405656 | G99: 1
A100: 1619.283799 | B100: 1 | F100: 1013.546448 | G100: 1
A101: 1783.875985 | B101: 1 | F101: 1267.447211 | G101: 1
A102: -335.7790089 | B102: 1 | F102: 708.1949168 | G102: 1
A103: -365.4615132 | B103: 1 | F103: 633.116396 | G103: 1
A104: -734.1566993 | B104: 1 | F104: 560.9504385 | G104: 1
A105: -98.53985583 | B105: 1 | F105: 586.2653222 | G105: 1
A106: 1370.716647 | B106: 1 | F106: 1090.964193 | G106: 1
A107: 1859.339119 | B107: 1 | F107: 1213.865217 | G107: 1
A108: 2162.096113 | B108: 1 | F108: 1376.293128 | G108: 1
A109: 1608.831242 | B109: 1 | F109: 1342.842399 | G109: 1
A110: 1466.524571 | B110: 1 | F110: 1191.202579 | G110: 1
A111: 1660.672651 | B111: 1 | F111: 1270.884032 | G111: 1
A112: 875.3176119 | B112: 1 | F112: 858.4555678 | G112: 1
A113: 672.1023598 | B113: 1 | F113: 977.61936 | G113: 1
A114: 1123.824117 | B114: 1 | F114: 1047.366629 | G114: 1
A115: 56.61118504 | B115: 1 | F115: 788.1343293 | G115: 1
A116: -128.9610157 | B116: 1 | F116: 768.2088487 | G116: 1
A117: 1121.569288 | B117: 1 | F117: 1090.729092 | G117: 1
A118: 501.7277754 | B118: 1 | F118: 968.7859795 | G118: 1
A119: 928.4617275 | B119: 1 | F119: 941.6191285 | G119: 1
A120: 1556.221561 | B120: 1 | F120: 1132.145743 | G120: 1
A121: 1553.113315 | B121: 1 | F121: 1029.532694 | G121: 1
A122: 451.4814989 | B122: 1 | F122: 853.3037687 | G122: 1
A123: 1183.095021 | B123: 1 | F123: 658.8873137 | G123: 1
A124: 591.3724972 | B124: 1 | F124: 1072.947086 | G124: 1
A125: 874.643552 | B125: 1 | F125: 1094.684795 | G125: 1
A126: 1820.799651 | B126: 1 | F126: 1297.0082 | G126: 1
A127: 1462.620508 | B127: 1 | F127: 1144.242558 | G127: 1
A128: 1378.958979 | B128: 1 | F128: 1090.225277 | G128: 1
A129: 1469.500227 | B129: 1 | F129: 1187.126884 | G129: 1
A130: 929.5372907 | B130: 1 | F130: 1005.847866 | G130: 1
A131: 507.503267 | B131: 1 | F131: 927.7214898 | G131: 1
A132: 736.1607112 | B132: 1 | F132: 912.8908895 | G132: 1
A133: 1407.124896 | B133: 1 | F133: 1119.997496 | G133: 1
A134: 1434.18561 | B134: 1 | F134: 1087.789775 | G134: 1
A135: 675.991013 | B135: 1 | F135: 686.0364817 | G135: 1
A136: 1570.308771 | B136: 1 | F136: 1027.959236 | G136: 1
A137: 2017.175034 | B137: 1 | F137: 1154.859224 | G137: 1
A138: 1236.899254 | B138: 1 | F138: 1167.595513 | G138: 1
A139: 1179.65737 | B139: 1 | F139: 1111.868701 | G139: 1
A140: 1525.535458 | B140: 1 | F140: 1236.547566 | G140: 1
A141: 1650.408395 | B141: 1 | F141: 1094.605023 | G141: 1
A142: 1385.414981 | B142: 1 | F142: 968.2282838 | G142: 1
A143: 1067.854678 | B143: 1 | F143: 751.8465893 | G143: 1
A144: 1813.790899 | B144: 1 | F144: 1221.009758 | G144: 1
A145: 2086.811493 | B145: 1 | F145: 1281.795243 | G145: 1
A146: 1575.253303 | B146: 1 | F146: 924.8683963 | G146: 1
A147: 1457.40738 | B147: 1 | F147: 972.9728361 | G147: 1
A148: 1492.835478 | B148: 1 | F148: 1038.835654 | G148: 1
A149: 841.9923911 | B149: 1 | F149: 842.9412915 | G149: 1
A150: 1529.13282 | B150: 1 | F150: 1019.344196 | G150: 1
A151: 1489.059376 | B151: 1 | F151: 938.6844013 | G151: 1
A152: 993.6115526 | B152: 1 | F152: 848.8244047 | G152: 1
A153: 1206.47414 | B153: 1 | F153: 725.1373536 | G153: 1
A154: 1768.569518 | B154: 1 | F154: 1025.724535 | G154: 1
A155: 1744.60056 | B155: 1 | F155: 1056.670457 | G155: 1
A156: 1210.178426 | B156: 1 | F156: 968.4911297 | G156: 1
A157: 1062.299982 | B157: 1 | F157: 943.2201484 | G157: 1
A158: 1462.467756 | B158: 1 | F158: 1062.324323 | G158: 1
A159: 1903.689976 | B159: 1 | F159: 1043.171329 | G159: 1
A160: 2057.872184 | B160: 1 | F160: 1105.598148 | G160: 1
A161: 2143.609085 | B161: 1 | F161: 1155.939919 | G161: 1
A162: 1818.119666 | B162: 1 | F162: 1052.146571 | G162: 1
A163: 1588.775212 | B163: 1 | F163: 1075.004445 | G163: 1
A164: -92.14655262 | B164: 1 | F164: 783.0804476 | G164: 1
A165: 1256.545182 | B165: 1 | F165: 1075.685719 | G165: 1
A166: 486.243217 | B166: 1 | F166: 981.1948307 | G166: 1
A167: 8.589910417 | B167: 1 | F167: 984.1522106 | G167: 1
A168: 1508.716149 | B168: 1 | F168: 1183.073572 | G168: 1
A169: 1503.030377 | B169: 1 | F169: 1009.892056 | G169: 1
A170: 376.8290749 | B170: 1 | F170: 915.291211 | G170: 1
A171: 701.4867177 | B171: 1 | F171: 1044.940766 | G171: 1
A172: 278.2645434 | B172: 1 | F172: 803.2278084 | G172: 1
A173: 229.8554119 | B173: 1 | F173: 869.8616065 | G173: 1
A174: -287.5954709 | B174: 1 | F174: 726.0071 | G174: 1
A175: -384.5638598 | B175: 1 | F175: 621.520488 | G175: 1
A176: -598.1178486 | B176: 1 | F176: 522.502798 | G176: 1
A177: 764.4776091 | B177: 1 | F177: 973.6735098 | G177: 1
A178: 1396.129277 | B178: 1 | F178: 1123.447199 | G178: 1
A179: 2107.285176 | B179: 1 | F179: 1233.198933 | G179: 1
A180: 2201.737953 | B180: 1 | F180: 1224.390448 | G180: 1
A181: 1854.013963 | B181: 1 | F181: 1254.775426 | G181: 1
A182: 971.2139489 | B182: 1 | F182: 1060.606102 | G182: 1
A183: 1262.209382 | B183: 1 | F183: 1029.623972 | G183: 1
A184: 1353.536023 | B184: 1 | F184: 1018.470431 | G184: 1
A185: 1762.466299 | B185: 1 | F185: 1043.947729 | G185: 1
A186: 1738.97515 | B186: 1 | F186: 1180.624275 | G186: 1
A187: 1978.294812 | B187: 1 | F187: 1209.495293 | G187: 1
A188: 1350.484229 | B188: 1 | F188: 1073.676043 | G188: 1
A189: -434.0683435 | B189: 1 | F189: 620.640677 | G189: 1
A190: -236.9237553 | B190: 1 | F190: 547.5297912 | G190: 1
A191: 625.3651887 | B191: 1 | F191: 934.2151238 | G191: 1
A192: -89.78701254 | B192: 1 | F192: 779.1793455 | G192: 1
A193: 1317.838878 | B193: 1 | F193: 1162.425435 | G193: 1
A194: 1804.758188 | B194: 1 | F194: 1081.829531 | G194: 1
A195: 1997.727273 | B195: 1 | F195: 1161.194824 | G195: 1
A196: 1004.202739 | B196: 1 | F196: 945.2011305 | G196: 1
A197: 641.076363 | B197: 1 | F197: 896.6365582 | G197: 1
A198: 1304.781604 | B198: 1 | F198: 1001.735428 | G198: 1
A199: 1771.871551 | B199: 1 | F199: 1149.400831 | G199: 1
A200: 1889.64876 | B200: 1 | F200: 1249.049968 | G200: 1
... 167 more rows

Sheet Weekly
A1: DK1 | F1: DK2
A2: Residual load | B2: Number | C2: Middle | D2: Number | E2: Frequency | F2: Residual load | G2: Number | H2: Middle | I2: Number | J2: Frequency
A3: 1579.826386 | B3: 1 | C3: 145 | D3: 4 | E3: =D3/53 -> 0.07547169811 | F3: 1327.982796 | G3: 1 | H3: 800 | I3: 2 | J3: =I3/53 -> 0.03773584906
A4: 1312.802254 | B4: 1 | C4: =C3+100 -> 245 | D4: 1 | E4: =D4/53 -> 0.01886792453 | F4: 1354.654913 | G4: 1 | H4: =H3+50 -> 850 | I4: 3 | J4: =I4/53 -> 0.05660377358
A5: 1774.049083 | B5: 1 | C5: 445 | D5: 3 | E5: 0.05660377358 | F5: 1379.697617 | G5: 1 | H5: 950 | I5: 6 | J5: 0.1132075472
A6: 736.4957051 | B6: 1 | C6: =C5+100 -> 545 | D6: 3 | E6: 0.05660377358 | F6: 1227.429218 | G6: 1 | H6: =H5+50 -> 1000 | I6: 7 | J6: 0.1320754717
A7: 441.7110363 | B7: 1 | C7: 645 | D7: 1 | E7: 0.01886792453 | F7: 1161.912177 | G7: 1 | H7: 1050 | I7: 8 | J7: 0.1509433962
A8: 1342.127233 | B8: 1 | C8: 745 | D8: 3 | E8: 0.05660377358 | F8: 1580.350606 | G8: 1 | H8: 1100 | I8: 5 | J8: 0.09433962264
A9: 998.7502136 | B9: 1 | C9: 845 | D9: 1 | E9: 0.01886792453 | F9: 1295.172088 | G9: 1 | H9: 1150 | I9: 4 | J9: 0.07547169811
A10: 2077.217662 | B10: 1 | C10: 945 | D10: 3 | E10: 0.05660377358 | F10: 1532.498076 | G10: 1 | H10: 1200 | I10: 1 | J10: 0.01886792453
A11: 463.3829678 | B11: 1 | C11: 1045 | D11: 8 | E11: 0.1509433962 | F11: 1330.454374 | G11: 1 | H11: 1250 | I11: 2 | J11: 0.03773584906
A12: 1603.431636 | B12: 1 | C12: 1145 | D12: 2 | E12: 0.03773584906 | F12: 1458.674324 | G12: 1 | H12: 1300 | I12: 4 | J12: 0.07547169811
A13: 1057.625243 | B13: 1 | C13: 1245 | D13: 4 | E13: 0.07547169811 | F13: 1202.818861 | G13: 1 | H13: 1350 | I13: 5 | J13: 0.09433962264
A14: 1583.471133 | B14: 1 | C14: 1345 | D14: 5 | E14: 0.09433962264 | F14: 1445.759898 | G14: 1 | H14: 1400 | I14: 1 | J14: 0.01886792453
A15: 955.4173473 | B15: 1 | C15: 1445 | D15: 4 | E15: 0.07547169811 | F15: 1159.690607 | G15: 1 | H15: 1450 | I15: 3 | J15: 0.05660377358
A16: 997.8236757 | B16: 1 | C16: 1545 | D16: 6 | E16: 0.1132075472 | F16: 1058.08673 | G16: 1 | H16: 1550 | I16: 1 | J16: 0.01886792453
A17: 497.1420961 | B17: 1 | C17: 1645 | D17: 2 | E17: 0.03773584906 | F17: 865.8290992 | G17: 1 | H17: 1600 | I17: 1 | J17: 0.01886792453
A18: 1367.052667 | B18: 1 | C18: 1745 | D18: 2 | E18: 0.03773584906 | F18: 1152.094814 | G18: 1
A19: 798.3919766 | B19: 1 | C19: 2045 | D19: 1 | E19: 0.01886792453 | F19: 959.8794021 | G19: 1
A20: 1108.995958 | B20: 1 | F20: 1030.185571 | G20: 1
A21: 1022.857573 | B21: 1 | F21: 989.6301259 | G21: 1
A22: 1509.342752 | B22: 1 | F22: 1108.809078 | G22: 1
A23: 1476.56366 | B23: 1 | F23: 1004.895681 | G23: 1
A24: 1420.232342 | B24: 1 | F24: 940.4109253 | G24: 1
A25: 1719.547694 | B25: 1 | F25: 1062.486412 | G25: 1
A26: 721.1153368 | B26: 1 | F26: 990.3385782 | G26: 1
A27: 100.5438718 | B27: 1 | F27: 794.5334396 | G27: 1
A28: 1592.303675 | B28: 1 | F28: 1134.930359 | G28: 1
A29: 969.2276544 | B29: 1 | F29: 944.3041333 | G29: 1
A30: 1140.085433 | B30: 1 | F30: 1004.028893 | G30: 1
A31: 1341.902245 | B31: 1 | F31: 1064.649282 | G31: 1
A32: 1291.960817 | B32: 1 | F32: 1078.526908 | G32: 1
A33: 1249.811314 | B33: 1 | F33: 1067.893524 | G33: 1
A34: 1012.491212 | B34: 1 | F34: 937.2809175 | G34: 1
A35: 1047.113333 | B35: 1 | F35: 1092.33783 | G35: 1
A36: 1028.621324 | B36: 1 | F36: 943.8407615 | G36: 1
A37: 1399.457769 | B37: 1 | F37: 1073.92472 | G37: 1
A38: 1242.351162 | B38: 1 | F38: 1017.98134 | G38: 1
A39: 525.6179642 | B39: 1 | F39: 1020.121891 | G39: 1
A40: 100.4541351 | B40: 1 | F40: 843.5130532 | G40: 1
A41: 97.04431268 | B41: 1 | F41: 778.0021202 | G41: 1
A42: 935.2294878 | B42: 1 | F42: 1020.368475 | G42: 1
A43: 548.7451579 | B43: 1 | F43: 1033.151998 | G43: 1
A44: 1523.493705 | B44: 1 | F44: 1281.977168 | G44: 1
A45: 199.8189689 | B45: 1 | F45: 854.9315235 | G45: 1
A46: 663.9657117 | B46: 1 | F46: 1102.657879 | G46: 1
A47: 1484.10943 | B47: 1 | F47: 1340.482024 | G47: 1
A48: 1522.989262 | B48: 1 | F48: 1307.94797 | G48: 1
A49: 1206.703597 | B49: 1 | F49: 1306.505081 | G49: 1
A50: 1077.705582 | B50: 1 | F50: 1265.666935 | G50: 1
A51: 719.5228145 | B51: 1 | F51: 1050.373562 | G51: 1
A52: 1381.259362 | B52: 1 | F52: 1371.031127 | G52: 1
A53: 1614.838132 | B53: 1 | F53: 1465.651262 | G53: 1
A54: 409.7428889 | B54: 1 | F54: 962.7778943 | G54: 1
A55: 109.5863286 | B55: 1 | F55: 1102.811803 | G55: 1

Sheet Statistics
A1: DK 1 - REALITY | E1: DK 1 - PERFECT MODEL
B2: Down | C2: Up | F2: Down | G2: Up
A3: Hours | B3: =(1166/8760)*100 -> 13.31050228 | C3: =(7594/8760)*100 -> 86.68949772 | E3: Hours | F3: =(1376/8760)*100 -> 15.70776256 | G3: =(7384/8760)*100 -> 84.29223744
A5: DK 2 - REALITY | E5: DK 2 - PERFECT MODEL
B6: Down | C6: Up | F6: Down | G6: Up
A7: Hours | B7: =(815/8760)*100 -> 9.303652968 | C7: =(7945/8760)*100 -> 90.69634703 | E7: Hours | F7: 0 | G7: 100

Sheet Hourly Statistics
A1: Residual load DK1 | B1: Residual load DK2 | D1: DK1 | G1: DK2 | K1: DK1 | O1: DK2
A2: 16.2389 | B2: 856.315733 | D2: UP | E2: Number | F2: DOWN | G2: UP | H2: Number | I2: DOWN | K2: Middle | L2: Number | M2: Frequency | O2: Middle | P2: Number | Q2: Frequency
A3: 187.435552 | B3: 704.888419 | D3: 16.2389 | E3: 1 | F3: -144.474451 | G3: 856.315733 | H3: 1 | K3: -1406.5 | L3: 1 | M3: =(L3/8760) -> 0.0001141552511 | O3: 90 | P3: 4 | Q3: =P3/8760 -> 0.0004566210046
A4: 116.316182 | B4: 605.485307 | D4: 187.435552 | E4: 1 | F4: -7.063944 | G4: 704.888419 | H4: 1 | K4: =K3+37.5 -> -1369 | L4: 8 | M4: =(L4/8760) -> 0.0009132420091 | O4: =O3+60 -> 150 | P4: 17 | Q4: =P4/8760 -> 0.001940639269
A5: 54.976722 | B5: 572.555103 | D5: 116.316182 | E5: 1 | F5: -132.157433 | G5: 605.485307 | H5: 1 | K5: =K4+37.5 -> -1331.5 | L5: 6 | M5: 0.0006849315068 | O5: =O4+60 -> 210 | P5: 24 | Q5: 0.002739726027
A6: 52.857367 | B6: 501.059766 | D6: 54.976722 | E6: 1 | F6: -521.667794 | G6: 572.555103 | H6: 1 | K6: -1294 | L6: 11 | M6: 0.001255707763 | O6: 270 | P6: 38 | Q6: 0.004337899543
A7: 41.332811 | B7: 448.227959 | D7: 52.857367 | E7: 1 | F7: -262.797493 | G7: 501.059766 | H7: 1 | K7: -1256.5 | L7: 12 | M7: 0.001369863014 | O7: 330 | P7: 67 | Q7: 0.007648401826
A8: 156.226817 | B8: 465.577444 | D8: 41.332811 | E8: 1 | F8: -144.981533 | G8: 448.227959 | H8: 1 | K8: -1219 | L8: 15 | M8: 0.001712328767 | O8: 390 | P8: 85 | Q8: 0.009703196347
A9: 105.813531 | B9: 474.664651 | D9: 156.226817 | E9: 1 | F9: -27.484472 | G9: 465.577444 | H9: 1 | K9: -1181.5 | L9: 9 | M9: 0.00102739726 | O9: 450 | P9: 116 | Q9: 0.01324200913
A10: 123.483298 | B10: 507.630282 | D10: 105.813531 | E10: 1 | F10: -279.557251 | G10: 474.664651 | H10: 1 | K10: -1144 | L10: 10 | M10: 0.001141552511 | O10: 510 | P10: 160 | Q10: 0.01826484018
A11: -144.474451 | B11: 602.545321 | D11: 123.483298 | E11: 1 | F11: -562.103165 | G11: 507.630282 | H11: 1 | K11: -1106.5 | L11: 13 | M11: 0.001484018265 | O11: 570 | P11: 190 | Q11: 0.02168949772
A12: -7.063944 | B12: 688.702107 | D12: 238.822047 | E12: 1 | F12: -405.481301 | G12: 602.545321 | H12: 1 | K12: -1069 | L12: 13 | M12: 0.001484018265 | O12: 630 | P12: 243 | Q12: 0.02773972603
A13: -132.157433 | B13: 718.287749 | D13: 636.784306 | E13: 1 | F13: -529.515707 | G13: 688.702107 | H13: 1 | K13: -1031.5 | L13: 18 | M13: 0.002054794521 | O13: 690 | P13: 291 | Q13: 0.03321917808 | R13: =SUM(Q3:Q13) -> 0.1409817352
A14: -521.667794 | B14: 728.476661 | D14: 680.545496 | E14: 1 | F14: -479.125053 | G14: 718.287749 | H14: 1 | K14: -994 | L14: 19 | M14: 0.002168949772 | O14: 750 | P14: 369 | Q14: 0.04212328767
A15: -262.797493 | B15: 773.255185 | D15: 532.690524 | E15: 1 | F15: -615.115767 | G15: 728.476661 | H15: 1 | K15: -956.5 | L15: 32 | M15: 0.003652968037 | O15: 810 | P15: 390 | Q15: 0.04452054795
A16: -144.981533 | B16: 787.286252 | D16: 409.133314 | E16: 1 | F16: -85.596722 | G16: 773.255185 | H16: 1 | K16: -919 | L16: 29 | M16: 0.003310502283 | O16: 870 | P16: 425 | Q16: 0.04851598174
A17: 238.822047 | B17: 935.591402 | D17: 259.84584 | E17: 1 | F17: -3.357211 | G17: 787.286252 | H17: 1 | K17: -881.5 | L17: 30 | M17: 0.003424657534 | O17: 930 | P17: 519 | Q17: 0.05924657534
A18: 636.784306 | B18: 1065.206874 | D18: 289.650113 | E18: 1 | F18: -44.45716 | G18: 935.591402 | H18: 1 | K18: -844 | L18: 30 | M18: 0.003424657534 | O18: 990 | P18: 508 | Q18: 0.05799086758
A19: 680.545496 | B19: 1067.715548 | D19: 197.930493 | E19: 1 | F19: -63.585489 | G19: 1065.206874 | H19: 1 | K19: -806.5 | L19: 31 | M19: 0.003538812785 | O19: 1050 | P19: 528 | Q19: 0.0602739726
A20: 532.690524 | B20: 1001.395284 | D20: 220.832573 | E20: 1 | F20: -29.198482 | G20: 1067.715548 | H20: 1 | K20: -769 | L20: 33 | M20: 0.003767123288 | O20: 1110 | P20: 592 | Q20: 0.06757990868
A21: 409.133314 | B21: 938.907976 | D21: 259.028499 | E21: 1 | F21: -379.724078 | G21: 1001.395284 | H21: 1 | K21: -731.5 | L21: 42 | M21: 0.004794520548 | O21: 1170 | P21: 528 | Q21: 0.0602739726
A22: 259.84584 | B22: 847.688363 | D22: 311.62465 | E22: 1 | F22: -528.388692 | G22: 938.907976 | H22: 1 | K22: -694 | L22: 31 | M22: 0.003538812785 | O22: 1230 | P22: 580 | Q22: 0.06621004566
A23: 289.650113 | B23: 808.428193 | D23: 435.568516 | E23: 1 | F23: -627.18865 | G23: 847.688363 | H23: 1 | K23: -656.5 | L23: 50 | M23: 0.005707762557 | O23: 1290 | P23: 533 | Q23: 0.06084474886
A24: 197.930493 | B24: 795.309992 | D24: 494.845968 | E24: 1 | F24: -672.04335 | G24: 808.428193 | H24: 1 | K24: -619 | L24: 53 | M24: 0.006050228311 | O24: 1350 | P24: 460 | Q24: 0.05251141553
A25: 220.832573 | B25: 737.770294 | D25: 708.72378 | E25: 1 | F25: -719.813631 | G25: 795.309992 | H25: 1 | K25: -581.5 | L25: 42 | M25: 0.004794520548 | O25: 1410 | P25: 393 | Q25: 0.0448630137 | R25: =SUM(Q14:Q25) -> 0.6649543379
A26: 259.028499 | B26: 734.523058 | D26: 1047.539978 | E26: 1 | F26: -691.174967 | G26: 737.770294 | H26: 1 | K26: -544 | L26: 37 | M26: 0.004223744292 | O26: 1470 | P26: 263 | Q26: 0.03002283105
A27: 311.62465 | B27: 797.572974 | D27: 1389.620364 | E27: 1 | F27: -773.609271 | G27: 734.523058 | H27: 1 | K27: -506.5 | L27: 42 | M27: 0.004794520548 | O27: 1530 | P27: 224 | Q27: 0.02557077626
A28: 435.568516 | B28: 878.19069 | D28: 1709.122846 | E28: 1 | F28: -913.624683 | G28: 797.572974 | H28: 1 | K28: -469 | L28: 51 | M28: 0.005821917808 | O28: 1590 | P28: 190 | Q28: 0.02168949772
A29: 494.845968 | B29: 978.285535 | D29: 1836.091215 | E29: 1 | F29: -938.324806 | G29: 878.19069 | H29: 1 | K29: -431.5 | L29: 41 | M29: 0.004680365297 | O29: 1650 | P29: 183 | Q29: 0.02089041096
A30: 708.72378 | B30: 1088.039114 | D30: 1896.906509 | E30: 1 | F30: -957.231015 | G30: 978.285535 | H30: 1 | K30: -394 | L30: 48 | M30: 0.005479452055 | O30: 1710 | P30: 185 | Q30: 0.02111872146
A31: 1047.539978 | B31: 1286.308083 | D31: 1955.49034 | E31: 1 | F31: -421.303714 | G31: 1088.039114 | H31: 1 | K31: -356.5 | L31: 58 | M31: 0.006621004566 | O31: 1770 | P31: 162 | Q31: 0.01849315068
A32: 1389.620364 | B32: 1485.79004 | D32: 1944.605228 | E32: 1 | F32: -8.967129 | G32: 1286.308083 | H32: 1 | K32: -319 | L32: 55 | M32: 0.006278538813 | O32: 1830 | P32: 147 | Q32: 0.01678082192
A33: 1709.122846 | B33: 1611.758967 | D33: 1915.487431 | E33: 1 | F33: -84.701406 | G33: 1485.79004 | H33: 1 | K33: -281.5 | L33: 46 | M33: 0.005251141553 | O33: 1890 | P33: 125 | Q33: 0.01426940639
A34: 1836.091215 | B34: 1640.715074 | D34: 1999.372428 | E34: 1 | F34: -152.34808 | G34: 1611.758967 | H34: 1 | K34: -244 | L34: 74 | M34: 0.008447488584 | O34: 1950 | P34: 104 | Q34: 0.01187214612
A35: 1896.906509 | B35: 1661.220486 | D35: 2041.641315 | E35: 1 | F35: -92.728542 | G35: 1640.715074 | H35: 1 | K35: -206.5 | L35: 59 | M35: 0.006735159817 | O35: 2010 | P35: 50 | Q35: 0.005707762557
A36: 1955.49034 | B36: 1614.160447 | D36: 2122.182976 | E36: 1 | F36: -95.632395 | G36: 1661.220486 | H36: 1 | K36: -169 | L36: 58 | M36: 0.006621004566 | O36: 2070 | P36: 42 | Q36: 0.004794520548
A37: 1944.605228 | B37: 1573.812386 | D37: 2275.282559 | E37: 1 | F37: -343.00421 | G37: 1614.160447 | H37: 1 | K37: -131.5 | L37: 58 | M37: 0.006621004566 | O37: 2130 | P37: 15 | Q37: 0.001712328767
A38: 1915.487431 | B38: 1519.477376 | D38: 2053.971254 | E38: 1 | F38: -498.73636 | G38: 1573.812386 | H38: 1 | K38: -94 | L38: 53 | M38: 0.006050228311 | O38: 2190 | P38: 5 | Q38: 0.0005707762557
A39: 1999.372428 | B39: 1513.61656 | D39: 1672.946189 | E39: 1 | F39: -598.542071 | G39: 1519.477376 | H39: 1 | K39: -56.5 | L39: 78 | M39: 0.008904109589 | O39: 2250 | P39: 3 | Q39: 0.0003424657534
A40: 2041.641315 | B40: 1536.410126 | D40: 1358.313407 | E40: 1 | F40: -633.670584 | G40: 1513.61656 | H40: 1 | K40: -19 | L40: 77 | M40: 0.008789954338 | O40: 2310 | P40: 2 | Q40: 0.0002283105023 | R40: =SUM(Q26:Q40) -> 0.1940639269
A41: 2122.182976 | B41: 1774.889882 | D41: 1082.728495 | E41: 1 | F41: -354.9578 | G41: 1536.410126 | H41: 1 | K41: 0 | L41: 3 | M41: 0.0003424657534 | N41: =SUM(M3:M41) -> 0.1570776256
A42: 2275.282559 | B42: 1867.047684 | D42: 687.952843 | E42: 1 | F42: -216.650213 | G42: 1774.889882 | H42: 1 | K42: 42.5 | L42: 174 | M42: 0.0198630137
A43: 2053.971254 | B43: 1732.290541 | D43: 253.274177 | E43: 1 | F43: -55.733418 | G43: 1867.047684 | H43: 1 | K43: =K42+85 -> 127.5 | L43: 175 | M43: 0.01997716895
A44: 1672.946189 | B44: 1592.747233 | D44: 328.081343 | E44: 1 | F44: -363.179297 | G44: 1732.290541 | H44: 1 | K44: =K43+85 -> 212.5 | L44: 156 | M44: 0.01780821918
A45: 1358.313407 | B45: 1426.761508 | D45: 655.315387 | E45: 1 | F45: -222.240814 | G45: 1592.747233 | H45: 1 | K45: 297.5 | L45: 160 | M45: 0.01826484018
A46: 1082.728495 | B46: 1305.787028 | D46: 1206.021226 | E46: 1 | F46: -172.12486 | G46: 1426.761508 | H46: 1 | K46: 382.5 | L46: 195 | M46: 0.02226027397
A47: 687.952843 | B47: 1062.112234 | D47: 1422.333983 | E47: 1 | F47: -390.728434 | G47: 1305.787028 | H47: 1 | K47: 467.5 | L47: 229 | M47: 0.02614155251
A48: 253.274177 | B48: 908.780237 | D48: 1656.611182 | E48: 1 | F48: -600.398861 | G48: 1062.112234 | H48: 1 | K48: 552.5 | L48: 196 | M48: 0.02237442922
A49: -27.484472 | B49: 823.409933 | D49: 1972.77293 | E49: 1 | F49: -750.705719 | G49: 908.780237 | H49: 1 | K49: 637.5 | L49: 214 | M49: 0.02442922374
A50: -279.557251 | B50: 656.396019 | D50: 2229.255996 | E50: 1 | F50: -659.350496 | G50: 823.409933 | H50: 1 | K50: 722.5 | L50: 234 | M50: 0.02671232877
A51: -562.103165 | B51: 515.791095 | D51: 2481.171365 | E51: 1 | F51: -1127.166747 | G51: 656.396019 | H51: 1 | K51: 807.5 | L51: 253 | M51: 0.02888127854
A52: -405.481301 | B52: 430.269944 | D52: 2774.753952 | E52: 1 | F52: -844.640924 | G52: 515.791095 | H52: 1 | K52: 892.5 | L52: 264 | M52: 0.0301369863 | N52: =SUM(M42:M52) -> 0.2568493151
A53: -529.515707 | B53: 408.919718 | D53: 2987.945963 | E53: 1 | F53: -656.171633 | G53: 430.269944 | H53: 1 | K53: 977.5 | L53: 260 | M53: 0.0296803653
A54: -479.125053 | B54: 482.083891 | D54: 2822.049387 | E54: 1 | F54: -422.78639 | G54: 408.919718 | H54: 1 | K54: 1062.5 | L54: 301 | M54: 0.03436073059
A55: -615.115767 | B55: 691.232423 | D55: 2593.340668 | E55: 1 | F55: -542.887903 | G55: 482.083891 | H55: 1 | K55: 1147.5 | L55: 259 | M55: 0.02956621005
A56: -85.596722 | B56: 936.922309 | D56: 2312.271397 | E56: 1 | F56: -314.20367 | G56: 691.232423 | H56: 1 | K56: 1232.5 | L56: 289 | M56: 0.03299086758
A57: 328.081343 | B57: 1065.282494 | D57: 1978.470958 | E57: 1 | F57: -22.848058 | G57: 936.922309 | H57: 1 | K57: 1317.5 | L57: 289 | M57: 0.03299086758
A58: 655.315387 | B58: 1157.945292 | D58: 1630.120269 | E58: 1 | F58: -233.048433 | G58: 1065.282494 | H58: 1 | K58: 1402.5 | L58: 287 | M58: 0.03276255708
A59: 1206.021226 | B59: 1260.401941 | D59: 1290.964615 | E59: 1 | F59: -495.083934 | G59: 1157.945292 | H59: 1 | K59: 1487.5 | L59: 305 | M59: 0.0348173516
A60: 1422.333983 | B60: 1339.772623 | D60: 1167.600114 | E60: 1 | F60: -602.855779 | G60: 1260.401941 | H60: 1 | K60: 1572.5 | L60: 352 | M60: 0.0401826484
A61: 1656.611182 | B61: 1464.851143 | D61: 1062.470802 | E61: 1 | F61: -644.510536 | G61: 1339.772623 | H61: 1 | K61: 1657.5 | L61: 285 | M61: 0.03253424658
A62: 1972.77293 | B62: 1538.401654 | D62: 973.611526 | E62: 1 | F62: -701.216061 | G62: 1464.851143 | H62: 1 | K62: 1742.5 | L62: 315 | M62: 0.03595890411
A63: 2229.255996 | B63: 1585.052741 | D63: 929.239878 | E63: 1 | F63: -548.010383 | G63: 1538.401654 | H63: 1 | K63: 1827.5 | L63: 285 | M63: 0.03253424658
A64: 2481.171365 | B64: 1625.673289 | D64: 896.105891 | E64: 1 | F64: -63.169928 | G64: 1585.052741 | H64: 1 | K64: 1912.5 | L64: 278 | M64: 0.03173515982 | N64: =SUM(M53:M64) -> 0.4001141553
A65: 2774.753952 | B65: 1670.498775 | D65: 1042.387365 | E65: 1 | F65: -106.235159 | G65: 1625.673289 | H65: 1 | K65: 1997.5 | L65: 244 | M65: 0.02785388128
A66: 2987.945963 | B66: 1890.319105 | D66: 1515.905578 | E66: 1 | F66: -246.401371 | G66: 1670.498775 | H66: 1 | K66: 2082.5 | L66: 214 | M66: 0.02442922374
A67: 2822.049387 | B67: 2040.918905 | D67: 2134.380551 | E67: 1 | F67: -588.955652 | G67: 1890.319105 | H67: 1 | K67: 2167.5 | L67: 200 | M67: 0.02283105023
A68: 2593.340668 | B68: 1915.126802 | D68: 2383.501289 | E68: 1 | F68: -717.924753 | G68: 2040.918905 | H68: 1 | K68: 2252.5 | L68: 169 | M68: =(L68/8760) -> 0.01929223744
A69: 2312.271397 | B69: 1655.063246 | D69: 2416.618056 | E69: 1 | F69: -1160.127417 | G69: 1915.126802 | H69: 1 | K69: 2337.5 | L69: 183 | M69: 0.02089041096
A70: 1978.470958 | B70: 1575.190733 | D70: 2466.372295 | E70: 1 | F70: -1273.382713 | G70: 1655.063246 | H70: 1 | K70: 2422.5 | L70: 119 | M70: 0.01358447489
A71: 1630.120269 | B71: 1428.276165 | D71: 2422.832855 | E71: 1 | F71: -1303.898052 | G71: 1575.190733 | H71: 1 | K71: 2507.5 | L71: 101 | M71: 0.01152968037
A72: 1290.964615 | B72: 1360.764547 | D72: 2346.326598 | E72: 1 | F72: -1286.608878 | G72: 1428.276165 | H72: 1 | K72: 2592.5 | L72: 77 | M72: 0.008789954338
A73: 1167.600114 | B73: 1252.143127 | D73: 2501.911095 | E73: 1 | F73: -1133.822698 | G73: 1360.764547 | H73: 1 | K73: 2677.5 | L73: 79 | M73: 0.00901826484
A74: 1062.470802 | B74: 1114.887343 | D74: 2637.734722 | E74: 1 | F74: -853.371426 | G74: 1252.143127 | H74: 1 | K74: 2762.5 | L74: 51 | M74: 0.005821917808
A75: 973.611526 | B75: 842.240621 | D75: 2745.267526 | E75: 1 | F75: -679.571823 | G75: 1114.887343 | H75: 1 | K75: 2847.5 | L75: 58 | M75: 0.006621004566
A76: 929.239878 | B76: 686.266083 | D76: 2975.747439 | E76: 1 | F76: -172.684116 | G76: 842.240621 | H76: 1 | K76: 2932.5 | L76: 65 | M76: 0.007420091324
A77: 896.105891 | B77: 653.6581 | D77: 3249.575704 | E77: 1 | F77: -138.74681 | G77: 686.266083 | H77: 1 | K77: 3017.5 | L77: 28 | M77: 0.003196347032
A78: 1042.387365 | B78: 807.365275 | D78: 3106.775728 | E78: 1 | F78: -71.975397 | G78: 653.6581 | H78: 1 | K78: 3102.5 | L78: 30 | M78: 0.003424657534
A79: 1515.905578 | B79: 1055.305683 | D79: 2898.677978 | E79: 1 | F79: -516.630188 | G79: 807.365275 | H79: 1 | K79: 3187.5 | L79: 6 | M79: 0.0006849315068
A80: 2134.380551 | B80: 1324.312015 | D80: 2682.080998 | E80: 1 | F80: -762.074444 | G80: 1055.305683 | H80: 1 | K80: 3272.5 | L80: 4 | M80: 0.0004566210046
A81: 2383.501289 | B81: 1416.620501 | D81: 2508.08026 | E81: 1 | F81: -1232.890832 | G81: 1324.312015 | H81: 1 | K81: 3357.5 | L81: 1 | M81: 0.0001141552511 | N81: =SUM(M65:M81) -> 0.1859589041
A82: 2416.618056 | B82: 1402.850851 | D82: 2308.175712 | E82: 1 | F82: -1303.162596 | G82: 1416.620501 | H82: 1
A83: 2466.372295 | B83: 1476.343287 | D83: 2074.186626 | E83: 1 | F83: -1311.651953 | G83: 1402.850851 | H83: 1
A84: 2422.832855 | B84: 1549.500178 | D84: 1973.489745 | E84: 1 | F84: -1204.657825 | G84: 1476.343287 | H84: 1
A85: 2346.326598 | B85: 1601.864042 | D85: 1894.505713 | E85: 1 | F85: -630.96494 | G85: 1549.500178 | H85: 1
A86: 2501.911095 | B86: 1624.367548 | D86: 1721.492698 | E86: 1 | F86: -443.431271 | G86: 1601.864042 | H86: 1
A87: 2637.734722 | B87: 1688.894511 | D87: 1727.979795 | E87: 1 | F87: -464.892107 | G87: 1624.367548 | H87: 1
A88: 2745.267526 | B88: 1742.366191 | D88: 1822.787275 | E88: 1 | F88: -629.918683 | G88: 1688.894511 | H88: 1
A89: 2975.747439 | B89: 1898.555228 | D89: 1985.968366 | E89: 1 | F89: -521.477995 | G89: 1742.366191 | H89: 1
A90: 3249.575704 | B90: 2127.07128 | D90: 2455.680828 | E90: 1 | F90: -1043.236521 | G90: 1898.555228 | H90: 1
A91: 3106.775728 | B91: 2056.490944 | D91: 2905.915364 | E91: 1 | F91: -668.124852 | G91: 2127.07128 | H91: 1
A92: 2898.677978 | B92: 1914.21765 | D92: 3104.600138 | E92: 1 | F92: -945.68111 | G92: 2056.490944 | H92: 1
A93: 2682.080998 | B93: 1772.950317 | D93: 3095.282184 | E93: 1 | F93: -890.074772 | G93: 1914.21765 | H93: 1
A94: 2508.08026 | B94: 1628.679608 | D94: 3126.816881 | E94: 1 | F94: -972.098988 | G94: 1772.950317 | H94: 1
A95: 2308.175712 | B95: 1449.670209 | D95: 3080.112353 | E95: 1 | F95: -990.933319 | G95: 1628.679608 | H95: 1
A96: 2074.186626 | B96: 1300.102986 | D96: 2958.966403 | E96: 1 | F96: -954.553486 | G96: 1449.670209 | H96: 1
A97: 1973.489745 | B97: 1255.921427 | D97: 2890.226695 | E97: 1 | F97: -950.07428 | G97: 1300.102986 | H97: 1
A98: 1894.505713 | B98: 1232.978102 | D98: 2771.101793 | E98: 1 | F98: -1018.257413 | G98: 1255.921427 | H98: 1
A99: 1721.492698 | B99: 1151.605456 | D99: 2721.276861 | E99: 1 | F99: -967.130973 | G99: 1232.978102 | H99: 1
A100: 1727.979795 | B100: 862.10877 | D100: 2897.497983 | E100: 1 | F100: -709.729149 | G100: 1151.605456 | H100: 1
A101: 1822.787275 | B101: 823.784434 | D101: 3088.740771 | E101: 1 | F101: -506.119302 | G101: 862.10877 | H101: 1
A102: 1985.968366 | B102: 914.096058 | D102: 2932.187835 | E102: 1 | F102: -220.849025 | G102: 823.784434 | H102: 1
A103: 2455.680828 | B103: 1164.576504 | D103: 2673.320776 | E103: 1 | F103: -410.851357 | G103: 914.096058 | H103: 1
A104: 2905.915364 | B104: 1398.026479 | D104: 2508.113788 | E104: 1 | F104: -704.894916 | G104: 1164.576504 | H104: 1
A105: 3104.600138 | B105: 1518.904331 | D105: 2354.828332 | E105: 1 | F105: -654.632656 | G105: 1398.026479 | H105: 1
A106: 3095.282184 | B106: 1585.916824 | D106: 2175.554584 | E106: 1 | F106: -569.24309 | G106: 1518.904331 | H106: 1
A107: 3126.816881 | B107: 1626.617766 | D107: 2066.942077 | E107: 1 | F107: -501.266497 | G107: 1585.916824 | H107: 1
A108: 3080.112353 | B108: 1759.757881 | D108: 1933.099078 | E108: 1 | F108: -152.617928 | G108: 1626.617766 | H108: 1
A109: 2958.966403 | B109: 1745.24189 | D109: 1824.449258 | E109: 1 | F109: -241.272113 | G109: 1759.757881 | H109: 1
A110: 2890.226695 | B110: 1637.904958 | D110: 1766.68828 | E110: 1 | F110: -384.775572 | G110: 1745.24189 | H110: 1
A111: 2771.101793 | B111: 1678.411451 | D111: 1778.390028 | E111: 1 | F111: -376.932914 | G111: 1637.904958 | H111: 1
A112: 2721.276861 | B112: 1723.407969 | D112: 1786.604646 | E112: 1 | F112: -326.322234 | G112: 1678.411451 | H112: 1
A113: 2897.497983 | B113: 1849.573186 | D113: 1824.372862 | E113: 1 | F113: -200.836177 | G113: 1723.407969 | H113: 1
A114: 3088.740771 | B114: 1979.531859 | D114: 1947.272567 | E114: 1 | F114: -129.596838 | G114: 1849.573186 | H114: 1
A115: 2932.187835 | B115: 1959.318719 | D115: 2123.659604 | E115: 1 | F115: -194.189413 | G115: 1979.531859 | H115: 1
A116: 2673.320776 | B116: 1868.302557 | D116: 2311.954758 | E116: 1 | F116: -190.596267 | G116: 1959.318719 | H116: 1
A117: 2508.113788 | B117: 1764.389369 | D117: 2395.35256 | E117: 1 | F117: -316.0923 | G117: 1868.302557 | H117: 1
A118: 2354.828332 | B118: 1645.980207 | D118: 2310.786994 | E118: 1 | F118: -597.900506 | G118: 1764.389369 | H118: 1
A119: 2175.554584 | B119: 1531.262453 | D119: 2041.697097 | E119: 1 | F119: -367.608072 | G119: 1645.980207 | H119: 1
A120: 2066.942077 | B120: 1429.978161 | D120: 1916.635708 | E120: 1 | F120: -911.531584 | G120: 1531.262453 | H120: 1
A121: 1933.099078 | B121: 1342.644972 | D121: 1851.602897 | E121: 1 | F121: -751.594414 | G121: 1429.978161 | H121: 1
A122: 1824.449258 | B122: 1262.743736 | D122: 1794.618227 | E122: 1 | F122: -1020.568677 | G122: 1342.644972 | H122: 1
A123: 1766.68828 | B123: 1223.503405 | D123: 1822.91699 | E123: 1 | F123: -966.888833 | G123: 1262.743736 | H123: 1
A124: 1778.390028 | B124: 1223.192304 | D124: 1934.038054 | E124: 1 | F124: -1000.492789 | G124: 1223.503405 | H124: 1
A125: 1786.604646 | B125: 1239.974864 | D125: 2092.965155 | E125: 1 | F125: -768.108662 | G125: 1223.192304 | H125: 1
A126: 1824.372862 | B126: 1255.2363 | D126: 1974.829504 | E126: 1 | F126: -726.684972 | G126: 1239.974864 | H126: 1
A127: 1947.272567 | B127: 1303.993879 | D127: 1849.8257 | E127: 1 | F127: -355.896487 | G127: 1255.2363 | H127: 1
A128: 2123.659604 | B128: 1381.871934 | D128: 1795.716334 | E128: 1 | F128: -284.497739 | G128: 1303.993879 | H128: 1
A129: 2311.954758 | B129: 1469.986068 | D129: 1757.85615 | E129: 1 | F129: -178.587601 | G129: 1381.871934 | H129: 1
A130: 2395.35256 | B130: 1529.417134 | D130: 1712.377996 | E130: 1 | F130: -218.035224 | G130: 1469.986068 | H130: 1
A131: 2310.786994 | B131: 1603.067889 | D131: 1655.26584 | E131: 1 | F131: -372.210548 | G131: 1529.417134 | H131: 1
A132: 2041.697097 | B132: 1690.55404 | D132: 1648.186318 | E132: 1 | F132: -394.073475 | G132: 1603.067889 | H132: 1
A133: 1916.635708 | B133: 1688.445783 | D133: 1677.576119 | E133: 1 | F133: -168.14925 | G133: 1690.55404 | H133: 1
A134: 1851.602897 | B134: 1633.146065 | D134: 1753.999336 | E134: 1 | F134: -127.166728 | G134: 1688.445783 | H134: 1
A135: 1794.618227 | B135: 1597.142886 | D135: 1794.084945 | E135: 1 | F135: -322.270291 | G135: 1633.146065 | H135: 1
A136: 1822.91699 | B136: 1618.983254 | D136: 1812.219001 | E136: 1 | F136: -477.238969 | G136: 1597.142886 | H136: 1
A137: 1934.038054 | B137: 1737.90676 | D137: 1811.02808 | E137: 1 | F137: -626.266494 | G137: 1618.983254 | H137: 1
A138: 2092.965155 | B138: 1848.148146 | D138: 1857.730997 | E138: 1 | F138: -643.496478 | G138: 1737.90676 | H138: 1
A139: 1974.829504 | B139: 1763.93079 | D139: 1927.334689 | E139: 1 | F139: -635.670234 | G139: 1848.148146 | H139: 1
A140: 1849.8257 | B140: 1557.646766 | D140: 2009.544617 | E140: 1 | F140: -446.231721 | G140: 1763.93079 | H140: 1
A141: 1795.716334 | B141: 1389.095112 | D141: 1974.605155 | E141: 1 | F141: -157.580656 | G141: 1557.646766 | H141: 1
A142: 1757.85615 | B142: 1328.67754 | D142: 1921.365751 | E142: 1 | F142: -485.552759 | G142: 1389.095112 | H142: 1
A143: 1712.377996 | B143: 1233.572601 | D143: 1909.052375 | E143: 1 | F143: -780.919183 | G143: 1328.67754 | H143: 1
A144: 1655.26584 | B144: 1179.608053 | D144: 1814.910727 | E144: 1 | F144: -929.180292 | G144: 1233.572601 | H144: 1
A145: 1648.186318 | B145: 1144.674907 | D145: 1750.491936 | E145: 1 | F145: -998.779188 | G145: 1179.608053 | H145: 1
A146: 1677.576119 | B146: 1132.882514 | D146: 1789.864566 | E146: 1 | F146: -957.186996 | G146: 1144.674907 | H146: 1
A147: 1753.999336 | B147: 1114.504683 | D147: 1882.232857 | E147: 1 | F147: -900.522519 | G147: 1132.882514 | H147: 1
A148: 1794.084945 | B148: 1093.607102 | D148: 2013.872271 | E148: 1 | F148: -759.877287 | G148: 1114.504683 | H148: 1
A149: 1812.219001 | B149: 1122.603759 | D149: 2296.011647 | E149: 1 | F149: -673.674254 | G149: 1093.607102 | H149: 1
A150: 1811.02808 | B150: 1202.720165 | D150: 2181.211407 | E150: 1 | F150: -612.190207 | G150: 1122.603759 | H150: 1
A151: 1857.730997 | B151: 1317.912802 | D151: 1972.817282 | E151: 1 | F151: -517.658828 | G151: 1202.720165 | H151: 1
A152: 1927.334689 | B152: 1445.713185 | D152: 1723.747637 | E152: 1 | F152: -297.792863 | G152: 1317.912802 | H152: 1
A153: 2009.544617 | B153: 1575.612759 | D153: 1553.636548 | E153: 1 | F153: -77.611314 | G153: 1445.713185 | H153: 1
A154: 1974.605155 | B154: 1665.816248 | D154: 1447.47617 | E154: 1 | F154: -35.762983 | G154: 1575.612759 | H154: 1
A155: 1921.365751 | B155: 1680.58764 | D155: 1258.637925 | E155: 1 | F155: -132.738367 | G155: 1665.816248 | H155: 1
A156: 1909.052375 | B156: 1681.264082 | D156: 1129.666942 | E156: 1 | F156: -199.249529 | G156: 1680.58764 | H156: 1
A157: 1814.910727 | B157: 1666.837934 | D157: 1168.206623 | E157: 1 | F157: -119.2295 | G157: 1681.264082 | H157: 1
A158: 1750.491936 | B158: 1660.934053 | D158: 1262.350991 | E158: 1 | F158: -43.570656 | G158: 1666.837934 | H158: 1
A159: 1789.864566 | B159: 1679.626824 | D159: 1424.630279 | E159: 1 | F159: -57.322245 | G159: 1660.934053 | H159: 1
A160: 1882.232857 | B160: 1727.326701 | D160: 1561.487453 | E160: 1 | F160: -282.111298 | G160: 1679.626824 | H160: 1
A161: 2013.872271 | B161: 1901.556857 | D161: 1747.191834 | E161: 1 | F161: -451.891373 | G161: 1727.326701 | H161: 1
A162: 2296.011647 | B162: 2085.816021 | D162: 2239.268026 | E162: 1 | F162: -619.355617 | G162: 1901.556857 | H162: 1
A163: 2181.211407 | B163: 2064.625719 | D163: 2674.901451 | E163: 1 | F163: -622.499708 | G163: 2085.816021 | H163: 1
A164: 1972.817282 | B164: 1938.2405 | D164: 2753.258103 | E164: 1 | F164: -729.740787 | G164: 2064.625719 | H164: 1
A165: 1723.747637 | B165: 1808.342081 | D165: 2759.922135 | E165: 1 | F165: -904.56201 | G165: 1938.2405 | H165: 1
A166: 1553.636548 | B166: 1693.636742 | D166: 2706.67565 | E166: 1 | F166: -567.292147 | G166: 1808.342081 | H166: 1
A167: 1447.47617 | B167: 1554.788295 | D167: 2689.471846 | E167: 1 | F167: -515.946364 | G167: 1693.636742 | H167: 1
A168: 1258.637925 | B168: 1440.087125 | D168: 2616.334324 | E168: 1 | F168: -732.309392 | G168: 1554.788295 | H168: 1
A169: 1129.666942 | B169: 1362.746486 | D169: 2733.523611 | E169: 1 | F169: -629.221417 | G169: 1440.087125 | H169: 1
A170: 1168.206623 | B170: 1309.664218 | D170: 2817.956515 | E170: 1 | F170: -602.506891 | G170: 1362.746486 | H170: 1
A171: 1262.350991 | B171: 1288.966619 | D171: 2827.685226 | E171: 1 | F171: -656.79487 | G171: 1309.664218 | H171: 1
A172: 1424.630279 | B172: 1296.653453 | D172: 2960.220876 | E172: 1 | F172: -708.655142 | G172: 1288.966619 | H172: 1
A173: 1561.487453 | B173: 1329.542128 | D173: 2937.473283 | E173: 1 | F173: -851.525372 | G173: 1296.653453 | H173: 1
A174: 1747.191834 | B174: 1445.995497 | D174: 2441.910821 | E174: 1 | F174: -866.849948 | G174: 1329.542128 | H174: 1
A175: 2239.268026 | B175: 1704.331392 | D175: 2152.34335 | E175: 1 | F175: -851.301964 | G175: 1445.995497 | H175: 1
A176: 2674.901451 | B176: 1986.196667 | D176: 1774.672393 | E176: 1 | F176: -837.36143 | G176: 1704.331392 | H176: 1
A177: 2753.258103 | B177: 2079.753723 | D177: 1396.18116 | E177: 1 | F177: -463.506093 | G177: 1986.196667 | H177: 1
A178: 2759.922135 | B178: 2095.309909 | D178: 1080.398569 | E178: 1 | F178: -525.507598 | G178: 2079.753723 | H178: 1
A179: 2706.67565 | B179: 2064.391867 | D179: 866.412343 | E179: 1 | F179: -620.521804 | G179: 2095.309909 | H179: 1
A180: 2689.471846 | B180: 2001.40364 | D180: 667.148477 | E180: 1 | F180: -667.673552 | G180: 2064.391867 | H180: 1
A181: 2616.334324 | B181: 1957.925815 | D181: 431.910905 | E181: 1 | F181: -771.421383 | G181: 2001.40364 | H181: 1
A182: 2733.523611 | B182: 1947.823406 | D182: 251.266991 | E182: 1 | F182: -721.856712 | G182: 1957.925815 | H182: 1
A183: 2817.956515 | B183: 1949.456262 | D183: 180.858279 | E183: 1 | F183: -988.001977 | G183: 1947.823406 | H183: 1
A184: 2827.685226 | B184: 1947.116793 | D184: 107.290679 | E184: 1 | F184: -1229.431086 | G184: 1949.456262 | H184: 1
A185: 2960.220876 | B185: 2002.089957 | D185: 127.0377 | E185: 1 | F185: -1316.313969 | G185: 1947.116793 | H185: 1
A186: 2937.473283 | B186: 2169.113304 | D186: 241.494644 | E186: 1 | F186: -1294.17799 | G186: 2002.089957 | H186: 1
A187: 2441.910821 | B187: 2039.598911 | D187: 422.085977 | E187: 1 | F187: -1353.410806 | G187: 2169.113304 | H187: 1
A188: 2152.34335 | B188: 1833.249042 | D188: 573.813463 | E188: 1 | F188: -1251.138409 | G188: 2039.598911 | H188: 1
A189: 1774.672393 | B189: 1605.62142 | D189: 853.624168 | E189: 1 | F189: -1075.912025 | G189: 1833.249042 | H189: 1
A190: 1396.18116 | B190: 1399.467918 | D190: 698.887965 | E190: 1 | F190: -634.792536 | G190: 1605.62142 | H190: 1
A191: 1080.398569 | B191: 1202.949203 | D191: 504.854657 | E191: 1 | F191: -251.085658 | G191: 1399.467918 | H191: 1
A192: 866.412343 | B192: 1048.301068 | D192: 167.111836 | E192: 1 | F192: -12.17026 | G192: 1202.949203 | H192: 1
A193: 667.148477 | B193: 950.413807 | D193: 25.236936 | E193: 1 | F193: -34.095188 | G193: 1048.301068 | H193: 1
A194: 431.910905 | B194: 817.462169 | D194: 229.552289 | E194: 1 | F194: -66.179715 | G194: 950.413807 | H194: 1
A195: 251.266991 | B195: 752.765588 | D195: 157.977878 | E195: 1 | F195: -124.482098 | G195: 817.462169 | H195: 1
A196: 180.858279 | B196: 709.876843 | D196: 148.250223 | E196: 1 | F196: -242.990526 | G196: 752.765588 | H196: 1
A197: 107.290679 | B197: 700.696843 | D197: 267.135658 | E197: 1 | F197: -129.444245 | G197: 709.876843 | H197: 1
A198: 127.0377 | B198: 734.933631 | D198: 270.463625 | E198: 1 | F198: -131.423383 | G198: 700.696843 | H198: 1
A199: 241.494644 | B199: 945.219548 | D199: 277.489322 | E199: 1 | F199: -26.142099 | G199: 734.933631 | H199: 1
A200: 422.085977 | B200: 1200.393676 | D200: 164.114968 | E200: 1 | F200: -373.87002 | G200: 945.219548 | H200: 1
... 8562 more rows

Sheet Ramp_DK2
A1: Residual load DK2 | B1: residual load ramp | C1: min | D1: max | E1: bins | F1: frequency | G1: frequency2 | H1: sum | I1: bins_mid
A2: 856.315733 | B2: 0 | C2: =MIN(B2:B8761) -> -1053.487952 | D2: =MAX(B2:B8761) -> 978.88284 | E2: =C2+30 -> -1023.487952 | F2: =FREQUENCY(B2:B8761, E2:E69) -> 1 | G2: =F2/$H$2 -> 0.0001141552511 | H2: =SUM(F2:F69) -> 8760 | I2: =E2 -> -1023.487952
A3: 704.888419 | B3: =A3-A2 -> -151.427314 | E3: =E2+30 -> -993.487952 | F3: 0 | G3: =F3/$H$2 -> 0 | I3: =(E2+E3)/2 -> -1008.487952
A4: 605.485307 | B4: =A4-A3 -> -99.403112 | E4: =E3+30 -> -963.487952 | F4: 0 | G4: 0 | I4: -978.487952
A5: 572.555103 | B5: -32.930204 | E5: -933.487952 | F5: 0 | G5: 0 | I5: =(E4+E5)/2 -> -948.487952
A6: 501.059766 | B6: -71.495337 | E6: -903.487952 | F6: 0 | G6: 0 | I6: =(E5+E6)/2 -> -918.487952
A7: 448.227959 | B7: -52.831807 | E7: -873.487952 | F7: 0 | G7: =F7/$H$2 -> 0 | I7: -888.487952
A8: 465.577444 | B8: 17.349485 | E8: -843.487952 | F8: 0 | G8: 0 | I8: -858.487952
A9: 474.664651 | B9: 9.087207 | E9: -813.487952 | F9: 0 | G9: 0 | I9: -828.487952
A10: 507.630282 | B10: 32.965631 | E10: -783.487952 | F10: 0 | G10: 0 | I10: -798.487952
A11: 602.545321 | B11: 94.915039 | E11: -753.487952 | F11: 0 | G11: 0 | I11: -768.487952
A12: 688.702107 | B12: 86.156786 | E12: -723.487952 | F12: 0 | G12: 0 | I12: -738.487952
A13: 718.287749 | B13: 29.585642 | E13: -693.487952 | F13: 0 | G13: 0 | I13: -708.487952
A14: 728.476661 | B14: 10.188912 | E14: -663.487952 | F14: 0 | G14: 0 | I14: -678.487952
A15: 773.255185 | B15: 44.778524 | E15: -633.487952 | F15: 0 | G15: 0 | I15: -648.487952
A16: 787.286252 | B16: 14.031067 | E16: -603.487952 | F16: 0 | G16: 0 | I16: -618.487952
A17: 935.591402 | B17: 148.30515 | E17: -573.487952 | F17: 0 | G17: 0 | I17: -588.487952
A18: 1065.206874 | B18: 129.615472 | E18: -543.487952 | F18: 0 | G18: 0 | I18: -558.487952
A19: 1067.715548 | B19: 2.508674 | E19: -513.487952 | F19: 0 | G19: 0 | I19: -528.487952
A20: 1001.395284 | B20: -66.320264 | E20: -483.487952 | F20: 0 | G20: 0 | I20: -498.487952
A21: 938.907976 | B21: -62.487308 | E21: -453.487952 | F21: 0 | G21: 0 | I21: -468.487952
A22: 847.688363 | B22: -91.219613 | E22: -423.487952 | F22: 1 | G22: 0.0001141552511 | I22: -438.487952
A23: 808.428193 | B23: -39.26017 | E23: -393.487952 | F23: 0 | G23: 0 | I23: -408.487952
A24: 795.309992 | B24: -13.118201 | E24: -363.487952 | F24: 0 | G24: 0 | I24: -378.487952
A25: 737.770294 | B25: -57.539698 | E25: -333.487952 | F25: 1 | G25: 0.0001141552511 | I25: -348.487952
A26: 734.523058 | B26: -3.247236 | E26: -303.487952 | F26: 5 | G26: 0.0005707762557 | I26: -318.487952
A27: 797.572974 | B27: 63.049916 | E27: -273.487952 | F27: 6 | G27: 0.0006849315068 | I27: -288.487952
A28: 878.19069 | B28: 80.617716 | E28: -243.487952 | F28: 21 | G28: 0.002397260274 | H28: =SUM(G2:G28) -> 0.00399543379 | I28: -258.487952
A29: 978.285535 | B29: 100.094845 | E29: -213.487952 | F29: 39 | G29: 0.004452054795 | I29: -228.487952
A30: 1088.039114 | B30: 109.753579 | E30: -183.487952 | F30: 106 | G30: 0.01210045662 | I30: -198.487952
A31: 1286.308083 | B31: 198.268969 | E31: -153.487952 | F31: 216 | G31: 0.02465753425 | I31: -168.487952
A32: 1485.79004 | B32: 199.481957 | E32: -123.487952 | F32: 386 | G32: 0.04406392694 | I32: -138.487952
A33: 1611.758967 | B33: 125.968927 | E33: -93.487952 | F33: 566 | G33: 0.06461187215 | I33: -108.487952
A34: 1640.715074 | B34: 28.956107 | E34: -63.487952 | F34: 738 | G34: 0.08424657534 | I34: =(E33+E34)/2 -> -78.487952
A35: 1661.220486 | B35: 20.505412 | E35: -33.487952 | F35: 1105 | G35: 0.1261415525 | I35: -48.487952
A36: 1614.160447 | B36: -47.060039 | E36: -3.487952 | F36: 1375 | G36: 0.1569634703 | H36: =SUM(G29:G36) -> 0.5172374429 | I36: -18.487952
A37: 1573.812386 | B37: -40.348061 | E37: 26.512048 | F37: 1195 | G37: 0.1364155251 | I37: 11.512048
A38: 1519.477376 | B38: -54.33501 | E38: 56.512048 | F38: 886 | G38: 0.1011415525 | I38: 41.512048
A39: 1513.61656 | B39: -5.860816 | E39: 86.512048 | F39: 637 | G39: 0.07271689498 | I39: 71.512048
A40: 1536.410126 | B40: 22.793566 | E40: 116.512048 | F40: 502 | G40: 0.05730593607 | I40: 101.512048
A41: 1774.889882 | B41: 238.479756 | E41: 146.512048 | F41: 294 | G41: 0.03356164384 | I41: 131.512048
A42: 1867.047684 | B42: 92.157802 | E42: 176.512048 | F42: 185 | G42: 0.02111872146 | I42: 161.512048
A43: 1732.290541 | B43: -134.757143 | E43: 206.512048 | F43: 186 | G43: 0.02123287671 | I43: 191.512048
A44: 1592.747233 | B44: -139.543308 | E44: 236.512048 | F44: 142 | G44: 0.01621004566 | I44: 221.512048
A45: 1426.761508 | B45: -165.985725 | E45: 266.512048 | F45: 97 | G45: 0.01107305936 | I45: 251.512048
A46: 1305.787028 | B46: -120.97448 | E46: 296.512048 | F46: 42 | G46: 0.004794520548 | I46: 281.512048
A47: 1062.112234 | B47: -243.674794 | E47: 326.512048 | F47: 17 | G47: 0.001940639269 | I47: 311.512048
A48: 908.780237 | B48: -153.331997 | E48: 356.512048 | F48: 8 | G48: 0.0009132420091 | H48: =SUM(G37:G48) -> 0.4784246575 | I48: 341.512048
A49: 823.409933 | B49: -85.370304 | E49: 386.512048 | F49: 1 | G49: 0.0001141552511 | I49: 371.512048
A50: 656.396019 | B50: -167.013914 | E50: 416.512048 | F50: 0 | G50: 0 | I50: 401.512048
A51: 515.791095 | B51: -140.604924 | E51: 446.512048 | F51: 0 | G51: 0 | I51: 431.512048
A52: 430.269944 | B52: -85.521151 | E52: 476.512048 | F52: 1 | G52: 0.0001141552511 | I52: 461.512048
A53: 408.919718 | B53: -21.350226 | E53: =E52+30 -> 506.512048 | F53: 0 | G53: 0 | I53: 491.512048
A54: 482.083891 | B54: 73.164173 | E54: 536.512048 | F54: 0 | G54: 0 | I54: 521.512048
A55: 691.232423 | B55: 209.148532 | E55: 566.512048 | F55: 0 | G55: 0 | I55: 551.512048
A56: 936.922309 | B56: 245.689886 | E56: 596.512048 | F56: 0 | G56: 0 | I56: 581.512048
A57: 1065.282494 | B57: 128.360185 | E57: 626.512048 | F57: 0 | G57: 0 | I57: 611.512048
A58: 1157.945292 | B58: 92.662798 | E58: 656.512048 | F58: 0 | G58: 0 | I58: 641.512048
A59: 1260.401941 | B59: 102.456649 | E59: 686.512048 | F59: 0 | G59: 0 | I59: 671.512048
A60: 1339.772623 | B60: 79.370682 | E60: 716.512048 | F60: 0 | G60: 0 | I60: 701.512048
A61: 1464.851143 | B61: 125.07852 | E61: 746.512048 | F61: 0 | G61: 0 | I61: 731.512048
A62: 1538.401654 | B62: 73.550511 | E62: 776.512048 | F62: 0 | G62: 0 | I62: 761.512048
A63: 1585.052741 | B63: 46.651087 | E63: 806.512048 | F63: 0 | G63: 0 | I63: 791.512048
A64: 1625.673289 | B64: 40.620548 | E64: 836.512048 | F64: 0 | G64: 0 | I64: 821.512048
A65: 1670.498775 | B65: 44.825486 | E65: =E64+30 -> 866.512048 | F65: 0 | G65: 0 | I65: 851.512048
A66: 1890.319105 | B66: 219.82033 | E66: 896.512048 | F66: 0 | G66: 0 | I66: 881.512048
A67: 2040.918905 | B67: 150.5998 | E67: 926.512048 | F67: 0 | G67: =F67/$H$2 -> 0 | I67: 911.512048
A68: 1915.126802 | B68: =A68-A67 -> -125.792103 | E68: =E67+30 -> 956.512048 | F68: 0 | G68: 0 | I68: 941.512048
A69: 1655.063246 | B69: -260.063556 | E69: =E68+30 -> 986.512048 | F69: 1 | G69: 0.0001141552511 | H69: =SUM(G2:G69) -> 1 | I69: 971.512048
A70: 1575.190733 | B70: -79.872513 | H70: =SUM(G49:G69) -> 0.0003424657534
A71: 1428.276165 | B71: -146.914568
A72: 1360.764547 | B72: -67.511618
A73: 1252.143127 | B73: -108.62142
A74: 1114.887343 | B74: -137.255784
A75: 842.240621 | B75: -272.646722
A76: 686.266083 | B76: -155.974538
A77: 653.6581 | B77: -32.607983
A78: 807.365275 | B78: 153.707175
A79: 1055.305683 | B79: 247.940408
A80: 1324.312015 | B80: 269.006332
A81: 1416.620501 | B81: 92.308486
A82: 1402.850851 | B82: -13.76965
A83: 1476.343287 | B83: 73.492436
A84: 1549.500178 | B84: 73.156891
A85: 1601.864042 | B85: 52.363864
A86: 1624.367548 | B86: 22.503506
A87: 1688.894511 | B87: 64.526963
A88: 1742.366191 | B88: 53.47168
A89: 1898.555228 | B89: 156.189037
A90: 2127.07128 | B90: 228.516052
A91: 2056.490944 | B91: -70.580336
A92: 1914.21765 | B92: -142.273294
A93: 1772.950317 | B93: -141.267333
A94: 1628.679608 | B94: -144.270709
A95: 1449.670209 | B95: -179.009399
A96: 1300.102986 | B96: -149.567223
A97: 1255.921427 | B97: -44.181559
A98: 1232.978102 | B98: -22.943325
A99: 1151.605456 | B99: -81.372646
A100: 862.10877 | B100: -289.496686
A101: 823.784434 | B101: -38.324336
A102: 914.096058 | B102: 90.311624
A103: 1164.576504 | B103: 250.480446
A104: 1398.026479 | B104: 233.449975
A105: 1518.904331 | B105: 120.877852
A106: 1585.916824 | B106: 67.012493
A107: 1626.617766 | B107: 40.700942
A108: 1759.757881 | B108: 133.140115
A109: 1745.24189 | B109: -14.515991
A110: 1637.904958 | B110: -107.336932
A111: 1678.411451 | B111: 40.506493
A112: 1723.407969 | B112: 44.996518
A113: 1849.573186 | B113: 126.165217
A114: 1979.531859 | B114: 129.958673
A115: 1959.318719 | B115: -20.21314
A116: 1868.302557 | B116: -91.016162
A117: 1764.389369 | B117: -103.913188
A118: 1645.980207 | B118: -118.409162
A119: 1531.262453 | B119: -114.717754
A120: 1429.978161 | B120: -101.284292
A121: 1342.644972 | B121: -87.333189
A122: 1262.743736 | B122: -79.901236
A123: 1223.503405 | B123: -39.240331
A124: 1223.192304 | B124: -0.311101
A125: 1239.974864 | B125: 16.78256
A126: 1255.2363 | B126: 15.261436
A127: 1303.993879 | B127: 48.757579
A128: 1381.871934 | B128: 77.878055
A129: 1469.986068 | B129: 88.114134
A130: 1529.417134 | B130: 59.431066
A131: 1603.067889 | B131: 73.650755
A132: 1690.55404 | B132: =A132-A131 -> 87.486151
A133: 1688.445783 | B133: -2.108257
A134: 1633.146065 | B134: -55.299718
A135: 1597.142886 | B135: -36.003179
A136: 1618.983254 | B136: 21.840368
A137: 1737.90676 | B137: 118.923506
A138: 1848.148146 | B138: 110.241386
A139: 1763.93079 | B139: -84.217356
A140: 1557.646766 | B140: -206.284024
A141: 1389.095112 | B141: -168.551654
A142: 1328.67754 | B142: -60.417572
A143: 1233.572601 | B143: -95.104939
A144: 1179.608053 | B144: -53.964548
A145: 1144.674907 | B145: -34.933146
A146: 1132.882514 | B146: -11.792393
A147: 1114.504683 | B147: -18.377831
A148: 1093.607102 | B148: -20.897581
A149: 1122.603759 | B149: 28.996657
A150: 1202.720165 | B150: 80.116406
A151: 1317.912802 | B151: 115.192637
A152: 1445.713185 | B152: 127.800383
A153: 1575.612759 | B153: 129.899574
A154: 1665.816248 | B154: 90.203489
A155: 1680.58764 | B155: 14.771392
A156: 1681.264082 | B156: 0.676442
A157: 1666.837934 | B157: -14.426148
A158: 1660.934053 | B158: -5.903881
A159: 1679.626824 | B159: 18.692771
A160: 1727.326701 | B160: 47.699877
A161: 1901.556857 | B161: 174.230156
A162: 2085.816021 | B162: 184.259164
A163: 2064.625719 | B163: -21.190302
A164: 1938.2405 | B164: -126.385219
A165: 1808.342081 | B165: -129.898419
A166: 1693.636742 | B166: -114.705339
A167: 1554.788295 | B167: -138.848447
A168: 1440.087125 | B168: -114.70117
A169: 1362.746486 | B169: -77.340639
A170: 1309.664218 | B170: -53.082268
A171: 1288.966619 | B171: -20.697599
A172: 1296.653453 | B172: 7.686834
A173: 1329.542128 | B173: 32.888675
A174: 1445.995497 | B174: 116.453369
A175: 1704.331392 | B175: 258.335895
A176: 1986.196667 | B176: 281.865275
A177: 2079.753723 | B177: 93.557056
A178: 2095.309909 | B178: 15.556186
A179: 2064.391867 | B179: -30.918042
A180: 2001.40364 | B180: -62.988227
A181: 1957.925815 | B181: -43.477825
A182: 1947.823406 | B182: -10.102409
A183: 1949.456262 | B183: 1.632856
A184: 1947.116793 | B184: -2.339469
A185: 2002.089957 | B185: 54.973164
A186: 2169.113304 | B186: 167.023347
A187: 2039.598911 | B187: -129.514393
A188: 1833.249042 | B188: -206.349869
A189: 1605.62142 | B189: -227.627622
A190: 1399.467918 | B190: -206.153502
A191: 1202.949203 | B191: -196.518715
A192: 1048.301068 | B192: -154.648135
A193: 950.413807 | B193: -97.887261
A194: 817.462169 | B194: -132.951638
A195: 752.765588 | B195: -64.696581
A196: 709.876843 | B196: =A196-A195 -> -42.888745
A197: 700.696843 | B197: -9.18
A198: 734.933631 | B198: 34.236788
A199: 945.219548 | B199: 210.285917
A200: 1200.393676 | B200: 255.174128
... 8561 more rows

Sheet Ramp_DK1
A1: Residual load DK1 | B1: residual load ramp | C1: min | D1: max | E1: bins | F1: frequency | G1: frequency2 | H1: sum | I1: bins_mid
A2: 16.2389 | B2: 0 | C2: =MIN(B2:B8761) -> -969.6575 | D2: =MAX(B2:B8761) -> 1072.150439 | E2: =C2+40 -> -929.6575 | F2: =FREQUENCY(B2:B8761, E2:E53) -> 1 | G2: =F2/$H$2 -> 0.0001141552511 | H2: =SUM(F2:F53) -> 8760 | I2: -929.6575
A3: 187.435552 | B3: =A3-A2 -> 171.196652 | E3: =E2+40 -> -889.6575 | F3: 0 | G3: =F3/$H$2 -> 0 | I3: =(E2+E3)/2 -> -909.6575
A4: 116.316182 | B4: =A4-A3 -> -71.11937 | E4: =E3+40 -> -849.6575 | F4: 0 | G4: 0 | I4: =(E3+E4)/2 -> -869.6575
A5: 54.976722 | B5: -61.33946 | E5: -809.6575 | F5: 2 | G5: 0.0002283105023 | I5: =(E4+E5)/2 -> -829.6575
A6: 52.857367 | B6: -2.119355 | E6: -769.6575 | F6: 1 | G6: 0.0001141552511 | I6: -789.6575
A7: 41.332811 | B7: -11.524556 | E7: -729.6575 | F7: 0 | G7: 0 | I7: -749.6575
A8: 156.226817 | B8: 114.894006 | E8: -689.6575 | F8: 5 | G8: 0.0005707762557 | I8: -709.6575
A9: 105.813531 | B9: -50.413286 | E9: -649.6575 | F9: 5 | G9: 0.0005707762557 | I9: -669.6575
A10: 123.483298 | B10: 17.669767 | E10: -609.6575 | F10: 8 | G10: 0.0009132420091 | I10: -629.6575
A11: -144.474451 | B11: -267.957749 | E11: -569.6575 | F11: 10 | G11: 0.001141552511 | I11: -589.6575
A12: -7.063944 | B12: 137.410507 | E12: -529.6575 | F12: 19 | G12: 0.002168949772 | I12: -549.6575
A13: -132.157433 | B13: -125.093489 | E13: -489.6575 | F13: 17 | G13: 0.001940639269 | I13: -509.6575
A14: -521.667794 | B14: -389.510361 | E14: -449.6575 | F14: 32 | G14: 0.003652968037 | H14: =SUM(G2:G14) -> 0.01141552511 | I14: -469.6575
A15: -262.797493 | B15: 258.870301 | E15: -409.6575 | F15: 34 | G15: 0.003881278539 | I15: -429.6575
A16: -144.981533 | B16: 117.81596 | E16: -369.6575 | F16: 68 | G16: 0.007762557078 | I16: -389.6575
A17: 238.822047 | B17: 383.80358 | E17: -329.6575 | F17: 94 | G17: 0.01073059361 | I17: -349.6575
A18: 636.784306 | B18: 397.962259 | E18: -289.6575 | F18: 153 | G18: 0.01746575342 | I18: -309.6575
A19: 680.545496 | B19: 43.76119 | E19: -249.6575 | F19: 184 | G19: 0.02100456621 | I19: -269.6575
A20: 532.690524 | B20: -147.854972 | E20: -209.6575 | F20: 316 | G20: 0.03607305936 | I20: -229.6575
A21: 409.133314 | B21: -123.55721 | E21: -169.6575 | F21: 439 | G21: 0.05011415525 | I21: -189.6575
A22: 259.84584 | B22: -149.287474 | E22: -129.6575 | F22: 560 | G22: 0.06392694064 | I22: -149.6575
A23: 289.650113 | B23: 29.804273 | E23: -89.6575 | F23: 711 | G23: 0.08116438356 | I23: -109.6575
A24: 197.930493 | B24: -91.71962 | E24: -49.6575 | F24: 869 | G24: 0.09920091324 | I24: -69.6575
A25: 220.832573 | B25: 22.90208 | E25: -9.6575 | F25: 955 | G25: 0.1090182648 | H25: =SUM(G15:G25) -> 0.5003424658 | I25: -29.6575
A26: 259.028499 | B26: 38.195926 | E26: 30.3425 | F26: 871 | G26: 0.09942922374 | I26: 10.3425
A27: 311.62465 | B27: 52.596151 | E27: 70.3425 | F27: 712 | G27: 0.08127853881 | I27: 50.3425
A28: 435.568516 | B28: 123.943866 | E28: 110.3425 | F28: 556 | G28: 0.06347031963 | I28: 90.3425
A29: 494.845968 | B29: 59.277452 | E29: 150.3425 | F29: 516 | G29: 0.05890410959 | I29: 130.3425
A30: 708.72378 | B30: 213.877812 | E30: 190.3425 | F30: 381 | G30: 0.04349315068 | I30: 170.3425
A31: 1047.539978 | B31: 338.816198 | E31: 230.3425 | F31: 302 | G31: 0.03447488584 | I31: 210.3425
A32: 1389.620364 | B32: 342.080386 | E32: 270.3425 | F32: 199 | G32: 0.02271689498 | I32: 250.3425
A33: 1709.122846 | B33: 319.502482 | E33: 310.3425 | F33: 182 | G33: 0.02077625571 | H33: =SUM(G2:G53) -> 1 | I33: 290.3425
A34: 1836.091215 | B34: 126.968369 | E34: 350.3425 | F34: 140 | G34: 0.01598173516 | I34: 330.3425
A35: 1896.906509 | B35: 60.815294 | E35: 390.3425 | F35: 119 | G35: 0.01358447489 | I35: 370.3425
A36: 1955.49034 | B36: 58.583831 | E36: 430.3425 | F36: 88 | G36: 0.0100456621 | I36: 410.3425
A37: 1944.605228 | B37: -10.885112 | E37: 470.3425 | F37: 74 | G37: 0.008447488584 | I37: 450.3425
A38: 1915.487431 | B38: -29.117797 | E38: 510.3425 | F38: 53 | G38: 0.006050228311 | I38: 490.3425
A39: 1999.372428 | B39: 83.884997 | E39: 550.3425 | F39: 22 | G39: 0.002511415525 | I39: 530.3425
A40: 2041.641315 | B40: 42.268887 | E40: 590.3425 | F40: 25 | G40: 0.002853881279 | H40: =SUM(G26:G40) -> 0.4840182648 | I40: 570.3425
A41: 2122.182976 | B41: 80.541661 | E41: 630.3425 | F41: 17 | G41: 0.001940639269 | I41: 610.3425
A42: 2275.282559 | B42: 153.099583 | E42: 670.3425 | F42: 7 | G42: 0.000799086758 | I42: 650.3425
A43: 2053.971254 | B43: -221.311305 | E43: 710.3425 | F43: 4 | G43: 0.0004566210046 | I43: 690.3425
A44: 1672.946189 | B44: -381.025065 | E44: 750.3425 | F44: 0 | G44: 0 | I44: 730.3425
A45: 1358.313407 | B45: -314.632782 | E45: 790.3425 | F45: 1 | G45: 0.0001141552511 | I45: 770.3425
A46: 1082.728495 | B46: -275.584912 | E46: 830.3425 | F46: 5 | G46: 0.0005707762557 | I46: 810.3425
A47: 687.952843 | B47: -394.775652 | E47: 870.3425 | F47: 0 | G47: 0 | I47: 850.3425
A48: 253.274177 | B48: -434.678666 | E48: 910.3425 | F48: 1 | G48: 0.0001141552511 | I48: 890.3425
A49: -27.484472 | B49: -280.758649 | E49: 950.3425 | F49: 0 | G49: 0 | I49: 930.3425
A50: -279.557251 | B50: -252.072779 | E50: 990.3425 | F50: 1 | G50: 0.0001141552511 | I50: 970.3425
A51: -562.103165 | B51: -282.545914 | E51: 1030.3425 | F51: 0 | G51: 0 | I51: 1010.3425
A52: -405.481301 | B52: 156.621864 | E52: 1070.3425 | F52: 0 | G52: 0 | I52: 1050.3425
A53: -529.515707 | B53: -124.034406 | E53: 1110.3425 | F53: 1 | G53: 0.0001141552511 | H53: =SUM(G41:G53) -> 0.004223744292 | I53: 1090.3425
A54: -479.125053 | B54: 50.390654
A55: -615.115767 | B55: -135.990714
A56: -85.596722 | B56: 529.519045
A57: 328.081343 | B57: 413.678065
A58: 655.315387 | B58: 327.234044
A59: 1206.021226 | B59: 550.705839
A60: 1422.333983 | B60: 216.312757
A61: 1656.611182 | B61: 234.277199
A62: 1972.77293 | B62: 316.161748
A63: 2229.255996 | B63: 256.483066
A64: 2481.171365 | B64: 251.915369
A65: 2774.753952 | B65: 293.582587
A66: 2987.945963 | B66: 213.192011
A67: 2822.049387 | B67: -165.896576
A68: 2593.340668 | B68: =A68-A67 -> -228.708719
A69: 2312.271397 | B69: -281.069271
A70: 1978.470958 | B70: -333.800439
A71: 1630.120269 | B71: -348.350689
A72: 1290.964615 | B72: -339.155654
A73: 1167.600114 | B73: -123.364501
A74: 1062.470802 | B74: -105.129312
A75: 973.611526 | B75: -88.859276
A76: 929.239878 | B76: -44.371648
A77: 896.105891 | B77: -33.133987
A78: 1042.387365 | B78: 146.281474
A79: 1515.905578 | B79: 473.518213
A80: 2134.380551 | B80: 618.474973
A81: 2383.501289 | B81: 249.120738
A82: 2416.618056 | B82: 33.116767
A83: 2466.372295 | B83: 49.754239
A84: 2422.832855 | B84: -43.53944
A85: 2346.326598 | B85: -76.506257
A86: 2501.911095 | B86: 155.584497
A87: 2637.734722 | B87: 135.823627
A88: 2745.267526 | B88: 107.532804
A89: 2975.747439 | B89: 230.479913
A90: 3249.575704 | B90: 273.828265
A91: 3106.775728 | B91: -142.799976
A92: 2898.677978 | B92: -208.09775
A93: 2682.080998 | B93: -216.59698
A94: 2508.08026 | B94: -174.000738
A95: 2308.175712 | B95: -199.904548
A96: 2074.186626 | B96: -233.989086
A97: 1973.489745 | B97: -100.696881
A98: 1894.505713 | B98: -78.984032
A99: 1721.492698 | B99: -173.013015
A100: 1727.979795 | B100: 6.487097
A101: 1822.787275 | B101: 94.80748
A102: 1985.968366 | B102: 163.181091
A103: 2455.680828 | B103: 469.712462
A104: 2905.915364 | B104: 450.234536
A105: 3104.600138 | B105: 198.684774
A106: 3095.282184 | B106: -9.317954
A107: 3126.816881 | B107: 31.534697
A108: 3080.112353 | B108: -46.704528
A109: 2958.966403 | B109: -121.14595
A110: 2890.226695 | B110: -68.739708
A111: 2771.101793 | B111: -119.124902
A112: 2721.276861 | B112: -49.824932
A113: 2897.497983 | B113: 176.221122
A114: 3088.740771 | B114: 191.242788
A115: 2932.187835 | B115: -156.552936
A116: 2673.320776 | B116: -258.867059
A117: 2508.113788 | B117: -165.206988
A118: 2354.828332 | B118: -153.285456
A119: 2175.554584 | B119: -179.273748
A120: 2066.942077 | B120: -108.612507
A121: 1933.099078 | B121: -133.842999
A122: 1824.449258 | B122: -108.64982
A123: 1766.68828 | B123: -57.760978
A124: 1778.390028 | B124: 11.701748
A125: 1786.604646 | B125: 8.214618
A126: 1824.372862 | B126: 37.768216
A127: 1947.272567 | B127: 122.899705
A128: 2123.659604 | B128: 176.387037
A129: 2311.954758 | B129: 188.295154
A130: 2395.35256 | B130: 83.397802
A131: 2310.786994 | B131: -84.565566
A132: 2041.697097 | B132: =A132-A131 -> -269.089897
A133: 1916.635708 | B133: -125.061389
A134: 1851.602897 | B134: -65.032811
A135: 1794.618227 | B135: -56.98467
A136: 1822.91699 | B136: 28.298763
A137: 1934.038054 | B137: 111.121064
A138: 2092.965155 | B138: 158.927101
A139: 1974.829504 | B139: -118.135651
A140: 1849.8257 | B140: -125.003804
A141: 1795.716334 | B141: -54.109366
A142: 1757.85615 | B142: -37.860184
A143: 1712.377996 | B143: -45.478154
A144: 1655.26584 | B144: -57.112156
A145: 1648.186318 | B145: -7.079522
A146: 1677.576119 | B146: 29.389801
A147: 1753.999336 | B147: 76.423217
A148: 1794.084945 | B148: 40.085609
A149: 1812.219001 | B149: 18.134056
A150: 1811.02808 | B150: -1.190921
A151: 1857.730997 | B151: 46.702917
A152: 1927.334689 | B152: 69.603692
A153: 2009.544617 | B153: 82.209928
A154: 1974.605155 | B154: -34.939462
A155: 1921.365751 | B155: -53.239404
A156: 1909.052375 | B156: -12.313376
A157: 1814.910727 | B157: -94.141648
A158: 1750.491936 | B158: -64.418791
A159: 1789.864566 | B159: 39.37263
A160: 1882.232857 | B160: 92.368291
A161: 2013.872271 | B161: 131.639414
A162: 2296.011647 | B162: 282.139376
A163: 2181.211407 | B163: -114.80024
A164: 1972.817282 | B164: -208.394125
A165: 1723.747637 | B165: -249.069645
A166: 1553.636548 | B166: -170.111089
A167: 1447.47617 | B167: -106.160378
A168: 1258.637925 | B168: -188.838245
A169: 1129.666942 | B169: -128.970983
A170: 1168.206623 | B170: 38.539681
A171: 1262.350991 | B171: 94.144368
A172: 1424.630279 | B172: 162.279288
A173: 1561.487453 | B173: 136.857174
A174: 1747.191834 | B174: 185.704381
A175: 2239.268026 | B175: 492.076192
A176: 2674.901451 | B176: 435.633425
A177: 2753.258103 | B177: 78.356652
A178: 2759.922135 | B178: 6.664032
A179: 2706.67565 | B179: -53.246485
A180: 2689.471846 | B180: -17.203804
A181: 2616.334324 | B181: -73.137522
A182: 2733.523611 | B182: 117.189287
A183: 2817.956515 | B183: 84.432904
A184: 2827.685226 | B184: 9.728711
A185: 2960.220876 | B185: 132.53565
A186: 2937.473283 | B186: -22.747593
A187: 2441.910821 | B187: -495.562462
A188: 2152.34335 | B188: -289.567471
A189: 1774.672393 | B189: -377.670957
A190: 1396.18116 | B190: -378.491233
A191: 1080.398569 | B191: -315.782591
A192: 866.412343 | B192: -213.986226
A193: 667.148477 | B193: -199.263866
A194: 431.910905 | B194: -235.237572
A195: 251.266991 | B195: -180.643914
A196: 180.858279 | B196: =A196-A195 -> -70.408712
A197: 107.290679 | B197: -73.5676
A198: 127.0377 | B198: 19.747021
A199: 241.494644 | B199: 114.456944
A200: 422.085977 | B200: 180.591333
... 8561 more rows

Sheet Price Statistics
A1: DK1 | D1: DK2 | H1: DK1 - BalancingPowerPriceDownEUR | L1: DK1 - BalancingPowerPriceUpEUR | P1: DK2 - BalancingPowerPriceDownEUR | T1: DK2 - BalancingPowerPriceUpEUR
A2: BalancingPowerPriceUpEUR | B2: Number | C2: BalancingPowerPriceDownEUR | D2: BalancingPowerPriceUpEUR | E2: Number | F2: BalancingPowerPriceDownEUR | H2: Middle | I2: Number | J2: Frequency | L2: Middle | M2: Number | N2: Frequency | P2: Middle | Q2: Number | R2: Frequency | T2: Middle | U2: Number | V2: Frequency
A3: 30.47858265 | B3: 1 | C3: 26.43554648 | D3: 30.47858265 | E3: 1 | F3: 26.43554648 | H3: -42.5 | I3: 1 | J3: =I3/8760 -> 0.0001141552511 | L3: -15 | M3: 6 | N3: =M3/8760 -> 0.0006849315068 | P3: -38 | Q3: 1 | R3: =Q3/8760 -> 0.0001141552511 | T3: -15 | U3: 5 | V3: =U3/8760 -> 0.0005707762557
A4: 27.40936749 | B4: 1 | C4: 26.10511894 | D4: 30.00711897 | E4: 1 | F4: 26.10511894 | H4: -32.5 | I4: 1 | J4: =I4/8760 -> 0.0001141552511 | L4: -5 | M4: 38 | N4: =M4/8760 -> 0.004337899543 | P4: -22 | Q4: 7 | R4: =Q4/8760 -> 0.000799086758 | T4: =T3+10 -> -5 | U4: 25 | V4: =U4/8760 -> 0.002853881279
A5: 30.00711897 | B5: 1 | C5: 24.7055031 | D5: 30.00711897 | E5: 1 | F5: 24.7055031 | H5: =H4+5 -> -27.5 | I5: 2 | J5: 0.0002283105023 | L5: 5 | M5: 145 | N5: 0.01655251142 | P5: -14 | Q5: 32 | R5: 0.003652968037 | T5: =T4+10 -> 5 | U5: 103 | V5: 0.01175799087
A6: 28.42482773 | B6: 1 | C6: 24.74579914 | D6: 28.42482773 | E6: 1 | F6: 24.74579914 | H6: =H5+5 -> -22.5 | I6: 13 | J6: 0.001484018265 | L6: 15 | M6: 203 | N6: 0.02317351598 | P6: -6 | Q6: 60 | R6: 0.006849315068 | T6: 15 | U6: 152 | V6: 0.01735159817
A7: 29.30596784 | B7: 1 | C7: 18.01367379 | D7: 29.30596784 | E7: 1 | F7: 18.01367379 | H7: -17.5 | I7: 45 | J7: 0.005136986301 | L7: =L6+10 -> 25 | M7: 504 | N7: 0.05753424658 | P7: 2 | Q7: 196 | R7: 0.02237442922 | T7: 25 | U7: 438 | V7: 0.05
A8: 29.94801811 | B8: 1 | C8: 10.18280971 | D8: 29.94801811 | E8: 1 | F8: 10.18280971 | H8: -12.5 | I8: 60 | J8: 0.006849315068 | L8: =L7+10 -> 35 | M8: 1903 | N8: 0.2172374429 | P8: 10 | Q8: 114 | R8: 0.01301369863 | T8: 35 | U8: 1688 | V8: 0.1926940639
A9: 29.94801811 | B9: 1 | C9: 17.80413437 | D9: 29.94801811 | E9: 1 | F9: 17.80413437 | H9: -7.5 | I9: 58 | J9: 0.006621004566 | L9: 45 | M9: 2803 | N9: 0.3199771689 | P9: 18 | Q9: 214 | R9: 0.02442922374 | T9: 45 | U9: 2732 | V9: 0.3118721461
A10: 26.39390724 | B10: 1 | C10: 19.7638652 | D10: 26.39390724 | E10: 1 | F10: 19.7638652 | H10: -2.5 | I10: 67 | J10: 0.007648401826 | L10: 55 | M10: 1898 | N10: 0.2166666667 | P10: 26 | Q10: 858 | R10: 0.09794520548 | T10: 55 | U10: 1966 | V10: 0.2244292237
A11: 20.7349998 | B11: 1 | C11: 20.7349998 | D11: 20.7349998 | E11: 1 | F11: 20.7349998 | H11: 2.5 | I11: 200 | J11: 0.02283105023 | L11: 65 | M11: 647 | N11: 0.07385844749 | P11: 34 | Q11: 1706 | R11: 0.1947488584 | T11: 65 | U11: 778 | V11: 0.08881278539
A12: 24.76594716 | B12: 1 | C12: 24.76594716 | D12: 24.76594716 | E12: 1 | F12: 24.76594716 | H12: 7.5 | I12: 64 | J12: 0.007305936073 | L12: 75 | M12: 304 | N12: 0.03470319635 | P12: =P11+8 -> 42 | Q12: 2152 | R12: 0.2456621005 | T12: 75 | U12: 384 | V12: 0.04383561644
A13: 25.68604011 | B13: 1 | C13: -13.29769372 | D13: 25.68604011 | E13: 1 | F13: 25.68604011 | H13: 12.5 | I13: 121 | J13: 0.01381278539 | L13: 85 | M13: 108 | N13: 0.01232876712 | P13: =P12+8 -> 50 | Q13: 1919 | R13: 0.2190639269 | T13: 85 | U13: 169 | V13: 0.01929223744
A14: 16.56301629 | B14: 1 | C14: -13.16337358 | D14: 19.99489583 | E14: 1 | F14: 19.99489583 | H14: 17.5 | I14: 146 | J14: 0.01666666667 | L14: 95 | M14: 76 | N14: 0.008675799087 | P14: 58 | Q14: 697 | R14: 0.07956621005 | T14: 95 | U14: 109 | V14: 0.01244292237
A15: 13.21307204 | B15: 1 | C15: 13.21307204 | D15: 25.01578262 | E15: 1 | F15: 25.01578262 | H15: 22.5 | I15: 263 | J15: 0.03002283105 | L15: 105 | M15: 40 | N15: 0.004566210046 | P15: 66 | Q15: 385 | R15: 0.04394977169 | T15: 105 | U15: 57 | V15: 0.006506849315
A16: 9.152574245 | B16: 1 | C16: -6.716006931 | D16: 25.81498744 | E16: 1 | F16: 25.81498744 | H16: 27.5 | I16: 704 | J16: 0.0803652968 | L16: 115 | M16: 5 | N16: 0.0005707762557 | P16: 74 | Q16: 205 | R16: 0.02340182648 | T16: 115 | U16: 11 | V16: 0.001255707763
A17: 13.29232092 | B17: 1 | C17: 13.29232092 | D17: 26.46509691 | E17: 1 | F17: 26.46509691 | H17: 32.5 | I17: 1042 | J17: 0.1189497717 | L17: 125 | M17: 8 | N17: 0.0009132420091 | P17: 82 | Q17: 106 | R17: 0.01210045662 | T17: 125 | U17: 10 | V17: 0.001141552511
A18: 28.99971793 | B18: 1 | C18: 27.0359575 | D18: 28.99971793 | E18: 1 | F18: 27.0359575 | H18: 37.5 | I18: 1164 | J18: 0.1328767123 | L18: 135 | M18: 25 | N18: 0.002853881279 | P18: 90 | Q18: 49 | R18: 0.005593607306 | T18: 135 | U18: 42 | V18: 0.004794520548
A19: 29.94801811 | B19: 1 | C19: 27.43623151 | D19: 29.94801811 | E19: 1 | F19: 27.43623151 | H19: 42.5 | I19: 1395 | J19: 0.1592465753 | L19: 145 | M19: 5 | N19: 0.0005707762557 | P19: 98 | Q19: 27 | R19: 0.003082191781 | T19: 145 | U19: 9 | V19: 0.00102739726
A20: 29.94801811 | B20: 1 | C20: 27.29519537 | D20: 29.94801811 | E20: 1 | F20: 27.29519537 | H20: 47.5 | I20: 1415 | J20: 0.1615296804 | L20: 155 | M20: 1 | N20: 0.0001141552511 | P20: 106 | Q20: 6 | R20: 0.0006849315068 | T20: 155 | U20: 6 | V20: 0.0006849315068
A21: 29.94801811 | B21: 1 | C21: 26.96611103 | D21: 29.94801811 | E21: 1 | F21: 26.96611103 | H21: 52.5 | I21: 865 | J21: 0.09874429224 | L21: 165 | M21: 2 | N21: 0.0002283105023 | P21: 114 | Q21: 4 | R21: 0.0004566210046 | T21: 165 | U21: 6 | V21: 0.0006849315068
A22: 26.70552996 | B22: 1 | C22: 26.70552996 | D22: 26.70552996 | E22: 1 | F22: 26.70552996 | H22: 57.5 | I22: 423 | J22: 0.04828767123 | L22: 175 | M22: 5 | N22: 0.0005707762557 | P22: 122 | Q22: 2 | R22: 0.0002283105023 | T22: 175 | U22: 8 | V22: 0.0009132420091
A23: 26.47584252 | B23: 1 | C23: 26.47584252 | D23: 26.47584252 | E23: 1 | F23: 26.47584252 | H23: 62.5 | I23: 242 | J23: 0.02762557078 | L23: 185 | M23: 3 | N23: 0.0003424657534 | P23: 130 | Q23: 1 | R23: 0.0001141552511 | T23: 185 | U23: 2 | V23: 0.0002283105023
A24: 26.09571653 | B24: 1 | C24: 26.09571653 | D24: 26.09571653 | E24: 1 | F24: 26.09571653 | H24: 67.5 | I24: 172 | J24: 0.0196347032 | L24: 195 | M24: 2 | N24: 0.0002283105023 | P24: 138 | Q24: 2 | R24: 0.0002283105023 | T24: 195 | U24: 6 | V24: 0.0006849315068
A25: 24.88549208 | B25: 1 | C25: 21.90492821 | D25: 24.88549208 | E25: 1 | F25: 21.90492821 | H25: 72.5 | I25: 138 | J25: 0.01575342466 | L25: 205 | M25: 14 | N25: 0.001598173516 | P25: 146 | Q25: 5 | R25: 0.0005707762557 | T25: 205 | U25: 19 | V25: 0.002168949772
A26: 18.12673805 | B26: 1 | C26: 5.001544931 | D26: 18.12673805 | E26: 1 | F26: 5.001544931 | H26: 77.5 | I26: 63 | J26: 0.007191780822 | L26: 235 | M26: 1 | N26: 0.0001141552511 | P26: 154 | Q26: 2 | R26: 0.0002283105023 | T26: 215 | U26: 2 | V26: 0.0002283105023
A27: 14.99523087 | B27: 1 | C27: 3.001195642 | D27: 14.99523087 | E27: 1 | F27: 3.001195642 | H27: 82.5 | I27: 40 | J27: 0.004566210046 | L27: 255 | M27: 1 | N27: 0.0001141552511 | P27: 170 | Q27: 7 | R27: 0.000799086758 | T27: 235 | U27: 5 | V27: 0.0005707762557
A28: 17.79625724 | B28: 1 | C28: 3.001195642 | D28: 17.79625724 | E28: 1 | F28: 3.001195642 | H28: 87.5 | I28: 16 | J28: 0.001826484018 | L28: 265 | M28: 4 | N28: 0.0004566210046 | P28: 178 | Q28: 1 | R28: 0.0001141552511 | T28: 255 | U28: 2 | V28: 0.0002283105023
A29: 24.51872053 | B29: 1 | C29: 3.001195642 | D29: 24.51872053 | E29: 1 | F29: 3.001195642 | H29: 92.5 | I29: 16 | J29: 0.001826484018 | L29: 285 | M29: 3 | N29: 0.0003424657534 | P29: 202 | Q29: 1 | R29: 0.0001141552511 | T29: 265 | U29: 10 | V29: 0.001141552511
A30: 11.83416849 | B30: 1 | C30: 11.83416849 | D30: 17.82715585 | E30: 1 | F30: 17.82715585 | H30: 97.5 | I30: 14 | J30: 0.001598173516 | L30: 295 | M30: 2 | N30: 0.0002283105023 | P30: 258 | Q30: 1 | R30: 0.0001141552511 | T30: 285 | U30: 4 | V30: 0.0004566210046
A31: 14.55593321 | B31: 1 | C31: 14.55593321 | D31: 26.84955063 | E31: 1 | F31: 23.35263377 | H31: 102.5 | I31: 2 | J31: 0.0002283105023 | L31: 345 | M31: 3 | N31: 0.0003424657534 | T31: 295 | U31: 2 | V31: 0.0002283105023
A32: 22.58822897 | B32: 1 | C32: 22.58822897 | D32: 27.81009444 | E32: 1 | F32: 23.20888805 | H32: 107.5 | I32: 5 | J32: 0.0005707762557 | L32: 365 | M32: 1 | N32: 0.0001141552511 | T32: 305 | U32: 1 | V32: 0.0001141552511
A33: 41.93613391 | B33: 1 | C33: 24.70948587 | D33: 41.93613391 | E33: 1 | F33: 24.70948587 | H33: 112.5 | I33: 1 | J33: 0.0001141552511 | T33: 315 | U33: 2 | V33: 0.0002283105023
A34: 47.96808039 | B34: 1 | C34: 25.38388167 | D34: 47.96808039 | E34: 1 | F34: 25.38388167 | H34: 127.5 | I34: 1 | J34: 0.0001141552511 | T34: 325 | U34: 3 | V34: 0.0003424657534
A35: 38.03484826 | B35: 1 | C35: 25.38388167 | D35: 38.03484826 | E35: 1 | F35: 25.38388167 | H35: 142.5 | I35: 1 | J35: 0.0001141552511 | T35: 345 | U35: 3 | V35: 0.0003424657534
A36: 35.05380389 | B36: 1 | C36: 25.40268952 | D36: 35.05380389 | E36: 1 | F36: 25.40268952 | T36: 365 | U36: 1 | V36: 0.0001141552511
A37: 35.23382189 | B37: 1 | C37: 27.41378615 | D37: 35.23382189 | E37: 1 | F37: 27.41378615
A38: 34.57286027 | B38: 1 | C38: 27.92159813 | D38: 34.57286027 | E38: 1 | F38: 27.92159813
A39: 34.11341134 | B39: 1 | C39: 27.92159813 | D39: 34.11341134 | E39: 1 | F39: 27.92159813
A40: 35.99419643 | B40: 1 | C40: 27.51051225 | D40: 35.99419643 | E40: 1 | F40: 27.51051225
A41: 38.06440346 | B41: 1 | C41: 27.4097559 | D41: 38.06440346 | E41: 1 | F41: 27.4097559
A42: 41.68625818 | B42: 1 | C42: 27.4097559 | D42: 41.68625818 | E42: 1 | F42: 27.4097559
A43: 42.40633019 | B43: 1 | C43: 27.60992517 | D43: 42.40633019 | E43: 1 | F43: 27.60992517
A44: 45.07704502 | B44: 1 | C44: 28.42941011 | D44: 45.07704502 | E44: 1 | F44: 28.42941011
A45: 41.09515429 | B45: 1 | C45: 27.51051225 | D45: 41.09515429 | E45: 1 | F45: 27.51051225
A46: 34.95304754 | B46: 1 | C46: 25.38388167 | D46: 31.5622607 | E46: 1 | F46: 25.38388167
A47: 25.46986042 | B47: 1 | C47: 25.10982442 | D47: 28.86064726 | E47: 1 | F47: 25.10982442
A48: 21.30795169 | B48: 1 | C48: 21.30795169 | D48: 28.00085979 | E48: 1 | F48: 23.35263377
A49: 18.97712159 | B49: 1 | C49: 18.97712159 | D49: 27.60992517 | E49: 1 | F49: 22.70913659
A50: 18.10940061 | B50: 1 | C50: 18.10940061 | D50: 18.10940061 | E50: 1 | F50: 18.10940061
A51: 1.379597539 | B51: 1 | C51: 1.379597539 | D51: 1.379597539 | E51: 1 | F51: 1.379597539
A52: 0.02014991537 | B52: 1 | C52: 0.02014991537 | D52: 0.02014991537 | E52: 1 | F52: 0.02014991537
A53: -5.989898176 | B53: 1 | C53: -5.989898176 | D53: -5.989898176 | E53: 1 | F53: -5.989898176
A54: -9.209854652 | B54: 1 | C54: -9.209854652 | D54: -9.209854652 | E54: 1 | F54: -9.209854652
A55: -4.639853846 | B55: 1 | C55: -4.639853846 | D55: -4.639853846 | E55: 1 | F55: -4.639853846
A56: 9.898981758 | B56: 1 | C56: 2.955320921 | D56: 18.50836893 | E56: 1 | F56: 2.955320921
A57: 26.96864673 | B57: 1 | C57: 23.51495124 | D57: 28.94871175 | E57: 1 | F57: 23.51495124
A58: 27.56911421 | B58: 1 | C58: 24.29811128 | D58: 29.1985707 | E58: 1 | F58: 24.29811128
A59: 27.71822358 | B59: 1 | C59: 23.51495124 | D59: 29.27782703 | E59: 1 | F59: 23.51495124
A60: 27.98823245 | B60: 1 | C60: 23.51495124 | D60: 29.41887644 | E60: 1 | F60: 23.51495124
A61: 28.51884689 | B61: 1 | C61: 27.09357621 | D61: 29.24827382 | E61: 1 | F61: 27.09357621
A62: 29.22812391 | B62: 1 | C62: 27.09357621 | D62: 29.22812391 | E62: 1 | F62: 27.09357621
A63: 30.67220118 | B63: 1 | C63: 29.48872948 | D63: 30.67220118 | E63: 1 | F63: 29.48872948
A64: 32.09881518 | B64: 1 | C64: 29.8581446 | D64: 32.09881518 | E64: 1 | F64: 29.8581446
A65: 32.09881518 | B65: 1 | C65: 30.5083152 | D65: 32.09881518 | E65: 1 | F65: 30.5083152
A66: 32.09881518 | B66: 1 | C66: 30.94892668 | D66: 32.09881518 | E66: 1 | F66: 31.32774509
A67: 32.60793638 | B67: 1 | C67: 31.27804197 | D67: 32.60793638 | E67: 1 | F67: 31.58835066
A68: 32.60793638 | B68: 1 | C68: 30.77832406 | D68: 32.60793638 | E68: 1 | F68: 30.77832406
A69: 32.60793638 | B69: 1 | C69: 30.14830338 | D69: 32.60793638 | E69: 1 | F69: 30.14830338
A70: 31.19878563 | B70: 1 | C70: 29.36782999 | D70: 31.19878563 | E70: 1 | F70: 29.36782999
A71: 30.4989119 | B71: 1 | C71: 28.92856183 | D71: 30.4989119 | E71: 1 | F71: 28.92856183
A72: 30.4989119 | B72: 1 | C72: 28.12793853 | D72: 30.4989119 | E72: 1 | F72: 28.12793853
A73: 30.4989119 | B73: 1 | C73: 27.30850864 | D73: 30.4989119 | E73: 1 | F73: 27.30850864
A74: 31.59612621 | B74: 1 | C74: 27.04670311 | D74: 31.59612621 | E74: 1 | F74: 27.04670311
A75: 31.59612621 | B75: 1 | C75: 26.77671963 | D75: 31.59612621 | E75: 1 | F75: 26.77671963
A76: 31.59612621 | B76: 1 | C76: 26.46644011 | D76: 31.59612621 | E76: 1 | F76: 26.46644011
A77: 31.59612621 | B77: 1 | C77: 26.48658813 | D77: 31.59612621 | E77: 1 | F77: 26.48658813
A78: 30.78080297 | B78: 1 | C78: 26.59673065 | D78: 30.78080297 | E78: 1 | F78: 26.59673065
A79: 17.30849306 | B79: 1 | C79: 17.30849306 | D79: 27.00640707 | E79: 1 | F79: 27.00640707
A80: 19.9572862 | B80: 1 | C80: 19.9572862 | D80: 28.03664253 | E80: 1 | F80: 28.03664253
A81: 33.85807734 | B81: 1 | C81: 33.58540746 | D81: 33.85807734 | E81: 1 | F81: 30.4261978
A82: 40.44513694 | B82: 1 | C82: 40.44513694 | D82: 40.44513694 | E82: 1 | F82: 40.44513694
A83: 41.96429771 | B83: 1 | C83: 41.96429771 | D83: 41.96429771 | E83: 1 | F83: 41.96429771
A84: 37.99513761 | B84: 1 | C84: 37.54516515 | D84: 37.99513761 | E84: 1 | F84: 37.54516515
A85: 58.01555427 | B85: 1 | C85: 36.01525877 | D85: 60.44406238 | E85: 1 | F85: 36.01525877
A86: 47.99527193 | B86: 1 | C86: 35.52633346 | D86: 47.99527193 | E86: 1 | F86: 35.52633346
A87: 53.72805545 | B87: 1 | C87: 35.29530282 | D87: 53.72805545 | E87: 1 | F87: 35.29530282
A88: 62.05590404 | B88: 1 | C88: 35.82586737 | D88: 62.05590404 | E88: 1 | F88: 35.82586737
A89: 60.44406238 | B89: 1 | C89: 42.03548738 | D89: 60.44406238 | E89: 1 | F89: 42.03548738
A90: 60.44406238 | B90: 1 | C90: 42.52441269 | D90: 60.44406238 | E90: 1 | F90: 42.52441269
A91: 51.42312187 | B91: 1 | C91: 51.42312187 | D91: 51.42312187 | E91: 1 | F91: 51.42312187
A92: 49.95365955 | B92: 1 | C92: 49.95365955 | D92: 49.95365955 | E92: 1 | F92: 49.95365955
A93: 46.72460342 | B93: 1 | C93: 46.72460342 | D93: 46.72460342 | E93: 1 | F93: 46.72460342
A94: 41.5653669 | B94: 1 | C94: 41.5653669 | D94: 41.5653669 | E94: 1 | F94: 41.5653669
A95: 37.08579027 | B95: 1 | C95: 37.08579027 | D95: 37.08579027 | E95: 1 | F95: 37.08579027
A96: 32.48666873 | B96: 1 | C96: 32.48666873 | D96: 32.48666873 | E96: 1 | F96: 32.48666873
A97: 28.04604494 | B97: 1 | C97: 24.62491101 | D97: 28.04604494 | E97: 1 | F97: 24.62491101
A98: 27.99661559 | B98: 1 | C98: 5.958984139 | D98: 27.99661559 | E98: 1 | F98: 27.37613989
A99: 27.99661559 | B99: 1 | C99: -0.940114694 | D99: 27.99661559 | E99: 1 | F99: 26.92622786
A100: 27.99661559 | B100: 1 | C100: 26.49646114 | D100: 27.99661559 | E100: 1 | F100: 26.49646114
A101: 27.99661559 | B101: 1 | C101: 26.49646114 | D101: 27.99661559 | E101: 1 | F101: 26.49646114
A102: 26.87653608 | B102: 1 | C102: 24.58265623 | D102: 26.87653608 | E102: 1 | F102: 24.58265623
A103: 27.65683128 | B103: 1 | C103: 23.55793121 | D103: 27.65683128 | E103: 1 | F103: 23.55793121
A104: 24.9775044 | B104: 1 | C104: 23.55793121 | D104: 28.64663775 | E104: 1 | F104: 23.55793121
A105: 30.43688473 | B105: 1 | C105: 26.45885655 | D105: 30.43688473 | E105: 1 | F105: 26.45885655
A106: 36.19575874 | B106: 1 | C106: 26.99740797 | D106: 36.19575874 | E106: 1 | F106: 26.99740797
A107: 36.29514229 | B107: 1 | C107: 26.99740797 | D107: 36.29514229 | E107: 1 | F107: 26.99740797
A108: 38.94492271 | B108: 1 | C108: 28.19672571 | D108: 38.94492271 | E108: 1 | F108: 28.19672571
A109: 39.52913684 | B109: 1 | C109: 39.39483474 | D109: 39.52913684 | E109: 1 | F109: 39.39483474
A110: 41.81898763 | B110: 1 | C110: 41.68468553 | D110: 41.81898763 | E110: 1 | F110: 41.68468553
A111: 60.43594461 | B111: 1 | C111: 42.40454478 | D111: 60.43594461 | E111: 1 | F111: 42.40454478
A112: 59.40316147 | B112: 1 | C112: 42.37499832 | D112: 59.40316147 | E112: 1 | F112: 42.37499832
A113: 61.39620462 | B113: 1 | C113: 47.09437409 | D113: 61.39620462 | E113: 1 | F113: 47.09437409
A114: 60.43594461 | B114: 1 | C114: 47.76454156 | D114: 60.43594461 | E114: 1 | F114: 47.76454156
A115: 56.61639291 | B115: 1 | C115: 56.34375965 | D115: 56.61639291 | E115: 1 | F115: 56.34375965
A116: 57.68678064 | B116: 1 | C116: 57.41280436 | D116: 57.68678064 | E116: 1 | F116: 57.41280436
A117: 54.18686794 | B117: 1 | C117: 53.91289166 | D117: 54.18686794 | E117: 1 | F117: 53.91289166
A118: 42.35485301 | B118: 1 | C118: 27.65548826 | D118: 42.35485301 | E118: 1 | F118: 27.65548826
A119: 39.89578157 | B119: 1 | C119: 26.63076324 | D119: 39.89578157 | E119: 1 | F119: 26.63076324
A120: 35.9755033 | B120: 1 | C120: 26.63076324 | D120: 35.9755033 | E120: 1 | F120: 26.63076324
A121: 35.23549873 | B121: 1 | C121: 35.23549873 | D121: 35.23549873 | E121: 1 | F121: 35.23549873
A122: 29.4497643 | B122: 1 | C122: 29.4497643 | D122: 29.4497643 | E122: 1 | F122: 29.4497643
A123: 28.54994024 | B123: 1 | C123: 25.66916021 | D123: 28.54994024 | E123: 1 | F123: 25.66916021
A124: 28.18060946 | B124: 1 | C124: 24.64174915 | D124: 28.18060946 | E124: 1 | F124: 24.64174915
A125: 28.00064465 | B125: 1 | C125: 24.64174915 | D125: 28.00064465 | E125: 1 | F125: 24.64174915
A126: 27.08067527 | B126: 1 | C126: 24.64174915 | D126: 28.14971998 | E126: 1 | F126: 24.64174915
A127: 28.70035859 | B127: 1 | C127: 24.64174915 | D127: 28.70035859 | E127: 1 | F127: 24.64174915
A128: 30.00040291 | B128: 1 | C128: 24.64174915 | D128: 30.00040291 | E128: 1 | F128: 24.64174915
A129: 31.36088317 | B129: 1 | C129: 24.64174915 | D129: 31.36088317 | E129: 1 | F129: 24.64174915
A130: 34.1906284 | B130: 1 | C130: 24.80022563 | D130: 34.1906284 | E130: 1 | F130: 24.80022563
A131: 41.11121557 | B131: 1 | C131: 25.66916021 | D131: 41.11121557 | E131: 1 | F131: 25.66916021
A132: 43.1606656 | B132: 1 | C132: 26.00088639 | D132: 43.1606656 | E132: 1 | F132: 26.00088639
A133: 43.17006675 | B133: 1 | C133: 26.18219423 | D133: 43.17006675 | E133: 1 | F133: 26.18219423
A134: 43.14052029 | B134: 1 | C134: 25.66916021 | D134: 43.14052029 | E134: 1 | F134: 25.66916021
A135: 39.96024658 | B135: 1 | C135: 25.66916021 | D135: 39.96024658 | E135: 1 | F135: 25.66916021
A136: 36.0399683 | B136: 1 | C136: 25.66916021 | D136: 36.0399683 | E136: 1 | F136: 25.66916021
A137: 34.91048765 | B137: 1 | C137: 25.66916021 | D137: 34.91048765 | E137: 1 | F137: 25.66916021
A138: 40.52028633 | B138: 1 | C138: 27.20960529 | D138: 60.43594461 | E138: 1 | F138: 40.52028633
A139: 43.91007131 | B139: 1 | C139: 43.91007131 | D139: 60.43594461 | E139: 1 | F139: 43.91007131
A140: 43.87112371 | B140: 1 | C140: 43.87112371 | D140: 43.87112371 | E140: 1 | F140: 43.87112371
A141: 35.09045246 | B141: 1 | C141: 27.7226393 | D141: 35.09045246 | E141: 1 | F141: 27.7226393
A142: 31.06004647 | B142: 1 | C142: 25.66916021 | D142: 31.06004647 | E142: 1 | F142: 25.66916021
A143: 30.72026216 | B143: 1 | C143: 25.66916021 | D143: 30.72026216 | E143: 1 | F143: 25.66916021
A144: 29.98025759 | B144: 1 | C144: 25.66916021 | D144: 29.98025759 | E144: 1 | F144: 25.66916021
A145: 29.03074175 | B145: 1 | C145: 24.80022563 | D145: 29.03074175 | E145: 1 | F145: 24.80022563
A146: 21.87243987 | B146: 1 | C146: 21.87243987 | D146: 27.58296512 | E146: 1 | F146: 27.58296512
A147: 15.9819498 | B147: 1 | C147: 15.9819498 | D147: 25.90284586 | E147: 1 | F147: 25.90284586
A148: 15.99135094 | B148: 1 | C148: 15.99135094 | D148: 25.89344471 | E148: 1 | F148: 25.89344471
A149: 26.16339193 | B149: 1 | C149: 26.16339193 | D149: 26.16339193 | E149: 1 | F149: 26.16339193
A150: 26.6025598 | B150: 1 | C150: 26.6025598 | D150: 26.6025598 | E150: 1 | F150: 26.6025598
A151: 27.14379726 | B151: 1 | C151: 27.14379726 | D151: 27.14379726 | E151: 1 | F151: 27.14379726
A152: 27.43388979 | B152: 1 | C152: 27.43388979 | D152: 27.43388979 | E152: 1 | F152: 27.43388979
A153: 27.69309284 | B153: 1 | C153: 24.00247116 | D153: 27.69309284 | E153: 1 | F153: 24.00247116
A154: 27.9334936 | B154: 1 | C154: 24.00247116 | D154: 27.9334936 | E154: 1 | F154: 24.00247116
A155: 28.33371386 | B155: 1 | C155: 24.75590593 | D155: 28.33371386 | E155: 1 | F155: 24.75590593
A156: 28.79302704 | B156: 1 | C156: 24.75590593 | D156: 28.79302704 | E156: 1 | F156: 24.75590593
A157: 28.95284653 | B157: 1 | C157: 24.75590593 | D157: 28.95284653 | E157: 1 | F157: 24.75590593
A158: 28.9635907 | B158: 1 | C158: 24.75590593 | D158: 28.9635907 | E158: 1 | F158: 24.75590593
A159: 28.27327791 | B159: 1 | C159: 23.80236103 | D159: 28.27327791 | E159: 1 | F159: 23.80236103
A160: 28.29342323 | B160: 1 | C160: 23.20874575 | D160: 28.29342323 | E160: 1 | F160: 23.20874575
A161: 26.75297815 | B161: 1 | C161: 23.20874575 | D161: 28.62380639 | E161: 1 | F161: 23.20874575
A162: 27.21363435 | B162: 1 | C162: 25.78734606 | D162: 29.38395627 | E162: 1 | F162: 25.78734606
A163: 32.49170685 | B163: 1 | C163: 30.88411072 | D163: 32.49170685 | E163: 1 | F163: 30.88411072
A164: 34.34373279 | B164: 1 | C164: 34.34373279 | D164: 34.34373279 | E164: 1 | F164: 34.34373279
A165: 32.33457339 | B165: 1 | C165: 32.33457339 | D165: 32.33457339 | E165: 1 | F165: 32.33457339
A166: 29.96414134 | B166: 1 | C166: 29.96414134 | D166: 29.96414134 | E166: 1 | F166: 29.96414134
A167: 28.94344539 | B167: 1 | C167: 24.75590593 | D167: 28.94344539 | E167: 1 | F167: 24.75590593
A168: 29.69419412 | B168: 1 | C168: 24.75590593 | D168: 29.13415437 | E168: 1 | F168: 24.75590593
A169: 27.01352422 | B169: 1 | C169: 24.60280154 | D169: 27.57356397 | E169: 1 | F169: 24.60280154
A170: 18.91038984 | B170: 1 | C170: 18.91038984 | D170: 25.02987901 | E170: 1 | F170: 20.62792915
A171: 15.15033505 | B171: 1 | C171: 15.15033505 | D171: 23.96094915 | E171: 1 | F171: 15.60019875
A172: 23.92066284 | B172: 1 | C172: 17.53259833 | D172: 23.92066284 | E172: 1 | F172: 17.53259833
A173: 25.4797427 | B173: 1 | C173: 19.49991271 | D173: 25.4797427 | E173: 1 | F173: 19.49991271
A174: 23.09076504 | B174: 1 | C174: 22.09972202 | D174: 26.1202949 | E174: 1 | F174: 22.09972202
A175: 17.10019203 | B175: 1 | C175: 17.10019203 | D175: 27.96003599 | E175: 1 | F175: 22.69058778
A176: 30.03075188 | B176: 1 | C176: 24.7532464 | D176: 29.6198316 | E176: 1 | F176: 24.7532464
A177: 42.93042556 | B177: 1 | C177: 27.84723435 | D177: 42.93042556 | E177: 1 | F177: 27.84723435
A178: 44.95011213 | B178: 1 | C178: 27.50077215 | D178: 44.95011213 | E178: 1 | F178: 27.50077215
A179: 58.68371225 | B179: 1 | C179: 42.5705346 | D179: 58.68371225 | E179: 1 | F179: 42.5705346
A180: 60.42945197 | B180: 1 | C180: 41.98101172 | D180: 60.42945197 | E180: 1 | F180: 41.98101172
A181: 41.54054816 | B181: 1 | C181: 25.78457572 | D181: 41.54054816 | E181: 1 | F181: 25.78457572
A182: 42.90088227 | B182: 1 | C182: 25.90006312 | D182: 42.90088227 | E182: 1 | F182: 25.90006312
A183: 42.90088227 | B183: 1 | C183: 25.78457572 | D183: 42.90088227 | E183: 1 | F183: 25.78457572
A184: 40.91073899 | B184: 1 | C184: 25.78457572 | D184: 40.91073899 | E184: 1 | F184: 25.78457572
A185: 40.97116844 | B185: 1 | C185: 26.00077887 | D185: 40.97116844 | E185: 1 | F185: 26.00077887
A186: 39.69006406 | B186: 1 | C186: 27.80023366 | D186: 39.69006406 | E186: 1 | F186: 27.80023366
A187: 40.26078666 | B187: 1 | C187: 27.84723435 | D187: 40.26078666 | E187: 1 | F187: 27.84723435
A188: 37.98998214 | B188: 1 | C188: 28.00032229 | D188: 37.98998214 | E188: 1 | F188: 28.00032229
A189: 31.92017941 | B189: 1 | C189: 25.78457572 | D189: 31.16011119 | E189: 1 | F189: 25.78457572
A190: 28.02046544 | B190: 1 | C190: 25.78457572 | D190: 29.68026106 | E190: 1 | F190: 25.78457572
A191: 24.78010394 | B191: 1 | C191: 24.7532464 | D191: 28.92019284 | E191: 1 | F191: 24.7532464
A192: 28.49047229 | B192: 1 | C192: 24.7532464 | D192: 28.49047229 | E192: 1 | F192: 24.7532464
A193: 28.09029503 | B193: 1 | C193: 22.09972202 | D193: 28.09029503 | E193: 1 | F193: 22.09972202
A194: 27.16835193 | B194: 1 | C194: 22.0991285 | D194: 27.16835193 | E194: 1 | F194: 22.0991285
A195: 22.0991285 | B195: 1 | C195: 22.0991285 | D195: 22.0991285 | E195: 1 | F195: 22.0991285
A196: 9.789308303 | B196: 1 | C196: 9.789308303 | D196: 9.789308303 | E196: 1 | F196: 9.789308303
A197: 4.989995837 | B197: 1 | C197: 4.989995837 | D197: 4.989995837 | E197: 1 | F197: 4.989995837
A198: 9.240086479 | B198: 1 | C198: 9.240086479 | D198: 9.240086479 | E198: 1 | F198: 9.240086479
A199: 14.65979132 | B199: 1 | C199: 14.65979132 | D199: 14.65979132 | E199: 1 | F199: 14.65979132
A200: 28.16876821 | B200: 1 | C200: 28.16876821 | D200: 28.98790101 | E200: 1 | F200: 28.98790101
... 8562 more rows
